Cogmind - Beta 15 *** ADVENTURER MODE // 2025.10.08 @ 17:34:46 // Winter2019/RPGLIKE Player: Gallgagger Result: Escaped! Performance ------------- Evolutions (9) 4500 Regions Visited (32) 6400 Robots Destroyed (1211) 6055 Value Destroyed (70287) 70287 Prototype IDs (167) 3340 Alien Tech Used (3) 600 Bonus (54176) 54176 TOTAL SCORE: 145358 Bonus ------- Triggered High Security 2000 High Alert Combat Kills 42004 Follower Combat Kills 482 Awakened Behemoth Slayer 1000 Entered Garrisons 400 Aligned with FarCom 300 Destroyed Z-Imprinter 1000 Acquired ECA 300 Met Zhirov 300 Met Warlord at Base 500 MAIN.C Attacked Warlord 500 Met Warlord at Research 2000 Scanned by Researcher 500 Win 3000 Friendly Fire -110 Cogmind --------- Core Integrity 904/1500 Matter 451/550 Energy 205/220 System Corruption 0% Temperature Cool (20) Movement Flying (12) Location To Epsilon Eridani Parts ------- > --- POWER (3) -------- Zionite Light DM Reactor Zionite Light DM Reactor Concept Zero-point Core > --- PROPULSION (7) --- Experimental Biomechanical Wings Experimental Biomechanical Wings Experimental Biomechanical Wings Experimental Surge Thruster Experimental Surge Thruster Concept Fieldthrust Drive Concept Fieldthrust Drive > --- UTILITY (11) ----- Advanced Gravity Neutralizer Concept Core Analysis Suite Concept Core Analysis Suite Experimental Armor Integrity Analyzer Experimental Kinecellerator Advanced Weapon Cycler Graphene Brace Advanced Focal Shield Thermal Barrier Concept Hardlight Director System Restoration Module > --- WEAPON (3) ------- Concept XC Strikerail Concept Heavy Railcannon > --- INVENTORY (5) ---- Protomatter-52 Protomatter-28 Concept Matter Streamer Chronowheel Peak State ------------ > --- POWER ------------ Zionite Light DM Reactor Zionite Light DM Reactor Concept Zero-point Core > --- PROPULSION ------- Experimental Biomechanical Wings Experimental Biomechanical Wings Experimental Biomechanical Wings Experimental Surge Thruster Experimental Surge Thruster Concept Fieldthrust Drive Concept Fieldthrust Drive > --- UTILITY ---------- Advanced Gravity Neutralizer Concept Core Analysis Suite Concept Core Analysis Suite Experimental Armor Integrity Analyzer Advanced Weapon Cycler Graphene Brace Advanced Focal Shield Thermal Barrier Concept Hardlight Director System Restoration Module Concept Matter Streamer > --- WEAPON ----------- Null Cannon Concept XC Strikerail Concept XC Strikerail > --- INVENTORY -------- Protomatter Experimental Kinecellerator Chronowheel Concept Heavy Railcannon [Rating: 252] Favorites ----------- Power Zionite Light DM Reactor Engine Makeshift Power Source Power Core Concept Zero-point Core Reactor Zionite Light DM Reactor Propulsion Electron Diverter Treads Improved Treads Wheel Wheel Flight Unit Electron Diverter Utility Advanced Weapon Cycler Device Advanced Weapon Cycler Storage Experimental Energy Well Processor Experimental Core Analyzer Hackware Experimental System Shield Protection Hardened Light Armor Plating Weapon Enhanced Coil Gun Energy Gun Particle Gun Energy Cannon Null Cannon Ballistic Gun Enhanced Coil Gun Ballistic Cannon Compact Linear Accelerator Launcher Heavy Shock Bomb Launcher Special Weapon Plasma Cutter Impact Weapon Concept Blasthammer Slashing Weapon Particle Cleaver Piercing Weapon CR-A16's Behemoth Slayer Build | -11 -10 -10 -9 -9 -9 -8 -8 -8 -7 -7 -6 -6 -6 -6 -6 -5 -5 -5 -5 -5 -4 -4 -4 -4 -4 -3 -3 -3 -2 -2 -2 -1 ------- Run | Yrd Mat Min Mat Min Exi Min Mat Gar Fac Gar Fac Low Low Zio Dee Pro Fac Upp Upp Zhi Pro Fac Upp Upp War Pro Res Tes Res Qua Frg Acc Slots Evolved 20 | 4 3 . 3 . 2 . 1 . 1 . . . . . 1 . 2 . . . . 1 . . . . . . 1 . 1 . Power 2 | 1 . . . . . . . . . . . . . . 1 . . . . . . . . . . . . . . . . . Propulsion 6 | 1 1 . 2 . . . . . . . . . . . . . 1 . . . . . . . . . . . . . 1 . Utility 10 | 1 1 . 1 . 2 . 1 . 1 . . . . . . . 1 . . . . 1 . . . . . . 1 . . . Weapon 2 | 1 1 . . . . . . . . . . . . . . . . . . . . . . . . . . . . . . . Parts Attached 196 | 6 14 1 16 1 13 2 8 3 8 1 6 . 5 1 4 2 12 1 1 2 2 12 . 4 5 . 8 13 6 2 37 . Power 22 | 2 . . 2 1 3 . . 1 2 . . . 2 . 3 . 2 . . 1 . . . . . . 1 . . . 2 . Engine 9 | 2 . . 2 . 3 . . . 1 . . . 1 . . . . . . . . . . . . . . . . . . . Core 5 | . . . . 1 . . . 1 . . . . 1 . . . . . . . . . . . . . . . . . 2 . Reactor 8 | . . . . . . . . . 1 . . . . . 3 . 2 . . 1 . . . . . . 1 . . . . . Propulsion 40 | 2 3 . 6 . 3 . 3 . 3 . 4 . . . . . 3 . . . . . . . 2 . 1 1 . . 9 . Treads 6 | . 3 . . . 3 . . . . . . . . . . . . . . . . . . . . . . . . . . . Leg . | . . . . . . . . . . . . . . . . . . . . . . . . . . . . . . . . . Wheel 2 | 2 . . . . . . . . . . . . . . . . . . . . . . . . . . . . . . . . Hover . | . . . . . . . . . . . . . . . . . . . . . . . . . . . . . . . . . Flight 32 | . . . 6 . . . 3 . 3 . 4 . . . . . 3 . . . . . . . 2 . 1 1 . . 9 . Utility 69 | . 5 1 2 . 6 2 3 1 3 . . . 3 . 1 . 3 1 1 . . 5 . 2 2 . 3 5 5 1 14 . Device 42 | . . . 2 . 4 1 2 . 2 . . . 1 . 1 . 1 1 1 . . 4 . 2 1 . 3 4 3 . 9 . Storage 4 | . 1 1 . . 1 1 . . . . . . . . . . . . . . . . . . . . . . . . . . Processor 16 | . . . . . 1 . . 1 1 . . . 2 . . . 1 . . . . 1 . . 1 . . 1 2 1 4 . Hackware 2 | . . . . . . . 1 . . . . . . . . . 1 . . . . . . . . . . . . . . . Protection 5 | . 4 . . . . . . . . . . . . . . . . . . . . . . . . . . . . . 1 . Artifact . | . . . . . . . . . . . . . . . . . . . . . . . . . . . . . . . . . Weapon 65 | 2 6 . 6 . 1 . 2 1 . 1 2 . . 1 . 2 4 . . 1 2 7 . 2 1 . 3 7 1 1 12 . Energy Gun 7 | . 3 . . . . . . . . . . . . . . . . . . . . . . 1 . . . 2 . . 1 . Energy Cannon 5 | . . . . . . . . . . . . . . . . . . . . . . . . 1 . . 1 3 . . . . Ballistic Gun 29 | 2 3 . 6 . 1 . 2 1 . 1 2 . . . . 1 3 . . . 1 1 . . . . . 1 . . 4 . Ballistic Cannon 8 | . . . . . . . . . . . . . . . . . 1 . . . 1 5 . . . . . . . . 1 . Launcher 2 | . . . . . . . . . . . . . . . . . . . . . . 1 . . . . . . . . 1 . Special Weapon 2 | . . . . . . . . . . . . . . 1 . . . . . . . . . . 1 . . . . . . . Impact Weapon 2 | . . . . . . . . . . . . . . . . . . . . . . . . . . . . . . . 2 . Slashing Weapon 4 | . . . . . . . . . . . . . . . . . . . . . . . . . . . . 1 1 1 1 . Piercing Weapon 6 | . . . . . . . . . . . . . . . . 1 . . . 1 . . . . . . 2 . . . 2 . Special Melee Weapon . | . . . . . . . . . . . . . . . . . . . . . . . . . . . . . . . . . Unidentified Prototypes 56 | . . . 4 . 5 2 . . 3 . 4 . . . 2 . 5 . . 3 . 3 . . 2 . 2 12 2 2 5 . Parts Lost 2 | . 1 . . . . . . . . . . . . . . . . . . . . 1 . . . . . . . . . . Power 1 | . . . . . . . . . . . . . . . . . . . . . . 1 . . . . . . . . . . Propulsion . | . . . . . . . . . . . . . . . . . . . . . . . . . . . . . . . . . Utility 1 | . 1 . . . . . . . . . . . . . . . . . . . . . . . . . . . . . . . Weapon . | . . . . . . . . . . . . . . . . . . . . . . . . . . . . . . . . . Highest Loss Streak 1 | . 1 . . . . . . . . . . . . . . . . . . . . 1 . . . . . . . . . . To Critical Strikes . | . . . . . . . . . . . . . . . . . . . . . . . . . . . . . . . . . Average Backups 3 | . 1 2 2 4 3 3 4 4 3 4 4 5 5 4 5 5 4 4 5 4 5 5 5 5 5 4 4 3 3 5 3 2 Power . | . . . . . . . . . . . . . . . . . . . . . . . . . . . . . . . . . Propulsion . | . . 1 . 3 1 . . . . . . . . . . . . . . . . . . . . . . . . . . . Utility 1 | . . 1 . . . 1 2 2 1 2 2 3 3 3 3 3 1 1 1 1 1 1 2 2 2 2 2 1 1 3 1 1 Weapon . | . . . . . . . . . . . . . . . 1 1 1 1 1 . 1 1 1 1 1 1 1 . 1 1 1 . Tool/Special . | . . . . . . . . . . . . . . . . . . . . . . . . . . . . . . . . . Unused Backups 12 | . . . 3 . 6 . . . . . . . . . . . . . . . . 1 . . . . . . . . 1 1 Power 3 | . . . . . 3 . . . . . . . . . . . . . . . . . . . . . . . . . . . Propulsion 2 | . . . 2 . . . . . . . . . . . . . . . . . . . . . . . . . . . . . Utility 5 | . . . 1 . 3 . . . . . . . . . . . . . . . . . . . . . . . . . 1 . Weapon . | . . . . . . . . . . . . . . . . . . . . . . . . . . . . . . . . . Tool/Special 2 | . . . . . . . . . . . . . . . . . . . . . . 1 . . . . . . . . . 1 Average Slot Usage (%) 98 | . 93 100 94 100 100 100 97 100 100 100 100 100 100 99 99 100 98 100 100 88 100 99 100 99 100 100 95 96 100 100 96 95 Engine 5 | . 20 18 16 11 6 12 11 10 10 5 5 5 3 . . . . . . . . . . . . . . . . . . . Core 1 | . . . . 2 6 . . . . . . . 1 5 1 . . . . . . . . . . . . . . . 3 4 Reactor 7 | . . . . . . . . . . 5 5 5 5 5 11 15 14 14 14 14 14 13 13 13 13 13 13 12 13 13 8 8 Treads 3 | . 18 27 9 . 5 . . . . . . . . . . . . . . . . . . . . . . . . . . . Flight 24 | . . . 21 35 28 31 30 29 27 27 27 27 27 27 26 26 26 28 28 28 28 27 27 27 27 27 27 27 26 26 28 29 Device 26 | . . . 2 14 15 25 22 23 22 33 33 33 30 27 30 31 28 36 38 37 38 36 36 38 40 40 40 39 39 39 34 33 Storage 1 | . . 9 3 . 1 4 5 5 4 . . . . . . . . . . . . . . . . . . . . . . . Processor 7 | . . . . . . 6 5 9 14 11 11 11 13 16 11 10 10 5 4 4 4 7 9 6 4 4 4 4 5 8 10 12 Protection 3 | . 20 18 16 14 12 1 . . . . . . . . . . . . . . . . . . . . . . . . . . Energy Gun 1 | . 14 . . . . . . . . . . . . . . . . . . . . . . 2 4 4 . . . . . . Ballistic Gun 11 | . 10 27 24 21 20 18 17 17 16 16 16 16 16 13 15 13 14 14 14 2 9 5 4 3 4 4 . 2 4 4 5 4 Ballistic Cannon 1 | . . . . . . . . . . . . . . . . . . . . . 2 6 9 5 3 4 3 1 . . . 4 Peak Build Rating 252 | 6 20 16 40 40 76 91 93 95 109 109 126 126 129 126 143 144 163 156 156 152 153 172 170 169 172 169 173 181 184 194 252 249 Average Rating 134 | 4 14 16 23 40 49 84 88 94 100 108 113 126 126 124 136 143 155 155 155 134 152 163 168 167 168 168 163 168 176 183 227 249 On Entrance 122 | . 6 16 16 40 40 76 91 93 95 107 109 126 126 126 126 143 144 154 156 155 152 152 168 168 169 169 168 164 172 184 184 249 Naked Turns . | . . . . . . . . . . . . . . . . . . . . . . . . . . . . . . . . . Heaviest Build 89 | 12 32 28 39 39 40 32 34 33 39 39 39 38 50 50 59 60 73 73 73 66 71 74 71 73 73 73 74 74 74 74 89 89 Greatest Support 94 | 26 69 69 69 41 85 41 44 44 46 52 55 46 55 55 66 63 74 74 83 74 74 83 74 74 75 74 74 74 77 74 94 90 Greatest Overweight (x) 2 | . . . 1 . . . . . . . . . . . . . 1 . . . . 2 . . . . . . . 1 . . Average Overweight (x) . | . . . . . . . . . . . . . . . . . . . . . . . . . . . . . . . . . Largest Inventory Capacity 5 | 2 2 2 4 4 4 4 4 4 4 4 5 5 5 5 5 5 5 5 5 5 5 5 5 5 5 5 5 5 5 5 5 5 Average Capacity 4 | 2 2 2 2 4 4 4 4 4 4 4 4 5 5 5 5 5 5 5 5 5 5 5 5 5 5 5 5 5 5 5 5 5 Most Carried 5 | . 2 2 4 4 4 4 4 4 4 4 5 5 5 5 5 5 5 5 5 5 5 5 5 5 5 5 5 5 5 5 5 4 Average Carried 4 | . 1 2 2 4 3 3 3 4 3 4 4 5 5 4 4 5 4 4 5 4 5 4 5 5 4 5 5 4 4 5 4 4 Final Capacity 5 | 2 2 2 4 4 4 4 4 4 4 4 5 5 5 5 5 5 5 5 5 5 5 5 5 5 5 5 5 5 5 5 5 5 Final Carried 5 | . 2 2 4 4 3 4 4 4 4 4 5 5 5 5 5 5 4 5 5 5 5 5 5 5 5 5 5 5 5 5 4 4 Class Distribution -------------------- 53% | Hacker-Sprinter 24% | Scavenger-Sprinter 9% | Tank 5% | Sprinter 4% | Mutant Dominant Class ---------------- Mutant | -10/Materials Tank | -10/Mines Sprinter | -9/Materials Sprinter | -9/Mines Scavenger-Sprinter | -9/Exiles Scavenger-Sprinter | -8/Mines Scavenger-Sprinter | -8/Materials Scavenger-Sprinter | -8/Garrison Scavenger-Sprinter | -7/Factory Scavenger-Sprinter | -7/Garrison Hacker-Sprinter | -6/Factory Hacker-Sprinter | -6/Lower Caves Hacker-Sprinter | -6/Lower Caves Hacker-Sprinter | -6/Zion Hacker-Sprinter | -6/Deep Caves Scavenger-Sprinter | -5/Proximity Caves Hacker-Sprinter | -5/Factory Hacker-Sprinter | -5/Upper Caves Hacker-Sprinter | -5/Upper Caves Hacker-Sprinter | -5/Zhirov Hacker-Sprinter | -4/Proximity Caves Hacker-Sprinter | -4/Factory Hacker-Sprinter | -4/Upper Caves Hacker-Sprinter | -4/Upper Caves Hacker-Sprinter | -4/Warlord Hacker-Sprinter | -3/Proximity Caves Hacker-Sprinter | -3/Research Hacker-Sprinter | -3/Testing Hacker-Sprinter | -2/Research Hacker-Sprinter | -2/Quarantine Hacker-Sprinter | -2/Protoforge Scavenger-Sprinter | -1/Access Resources | -11 -10 -10 -9 -9 -9 -8 -8 -8 -7 -7 -6 -6 -6 -6 -6 -5 -5 -5 -5 -5 -4 -4 -4 -4 -4 -3 -3 -3 -2 -2 -2 -1 ----------- Run | Yrd Mat Min Mat Min Exi Min Mat Gar Fac Gar Fac Low Low Zio Dee Pro Fac Upp Upp Zhi Pro Fac Upp Upp War Pro Res Tes Res Qua Frg Acc Matter Collected 35749 | 226 416 351 1515 99 850 374 1146 930 1268 . 834 95 331 56 368 660 3335 204 103 . 485 5376 714 389 258 456 196 419 130 50 13064 1051 Remotely 16698 | . . . . . . . . . . . . . . . . . . . 89 . 485 5362 714 389 258 456 196 354 130 50 8215 . Salvage Created 59545 | . 816 178 2234 155 292 314 2190 1764 2873 . 1564 210 1097 . 469 1300 7857 848 95 . 898 7653 885 153 . 460 845 622 2167 540 19891 1175 Parts 3289 | . 54 13 151 11 54 21 167 125 195 . 114 9 43 . 43 82 464 39 9 2 44 343 37 11 . 24 51 45 74 22 978 64 Haulers Intercepted 20 | . 1 . 5 . . . 5 . 1 . 2 . . . . . 2 . . . . 2 . . . . . 1 . . . 1 Recyclers Shooed 3 | . . . . . . . . . 1 . . . . . . . . . . . . 2 . . . . . . . . . . Parts Field Recycled . | . . . . . . . . . . . . . . . . . . . . . . . . . . . . . . . . . Retrieved Matter . | . . . . . . . . . . . . . . . . . . . . . . . . . . . . . . . . . Parts Self-Destructed 298 | . . . . . . . . . . . . 9 42 . . 97 . 35 . 2 42 . 37 9 . 25 . . . . . . Prevented 9 | . . . . . . . . . . . . . 1 . . . . 5 . . . . . . . 3 . . . . . . Kills | -11 -10 -10 -9 -9 -9 -8 -8 -8 -7 -7 -6 -6 -6 -6 -6 -5 -5 -5 -5 -5 -4 -4 -4 -4 -4 -3 -3 -3 -2 -2 -2 -1 ------- Run | Yrd Mat Min Mat Min Exi Min Mat Gar Fac Gar Fac Low Low Zio Dee Pro Fac Upp Upp Zhi Pro Fac Upp Upp War Pro Res Tes Res Qua Frg Acc Combat Hostiles Destroyed 1125 | . 25 6 51 5 1 8 50 40 51 . 20 3 18 . 8 23 115 18 4 . 21 153 25 11 . 16 11 9 25 6 372 30 Melee 56 | . . . . . . . . . . . . . . . . . . . . . . . . . . . 9 4 21 6 16 . Guns 741 | . 24 6 51 5 1 8 50 40 51 . 20 3 18 . 8 22 115 18 4 . 20 35 9 3 . 8 . 5 . . 205 12 Cannons 260 | . . . . . . . . . . . . . . . . . . . . . . 68 15 8 . 8 . . . . 143 18 AOE 24 | . . . . . . . . . . . . . . . . . . . . . . 23 . . . . . . . . 1 . Classes Destroyed 36 | . 5 3 5 . 2 . 1 4 2 . . . . . 1 3 . . 2 . . 1 . . . . . 1 . . 6 . Worker 22 | . . 1 2 . . . 1 . 2 . 2 . . . . . 4 . . . . 6 . . . . . . . . 4 . Builder 17 | . . 1 . . . . 1 . 2 . 3 . . . . . 2 . . . . 4 . . . . . 1 . . 3 . Tunneler 3 | . . 1 . . . . 1 . . . . . . . . . . . . . . 1 . . . . . . . . . . Hauler 20 | . 1 . 5 . . . 5 . 1 . 2 . . . . . 2 . . . . 2 . . . . . 1 . . . 1 Recycler 11 | . 1 1 . . . . . . 3 . 1 . . . . . 3 . . . . 2 . . . . . . . . . . Carrier 3 | . . . . . . . . . . . . . . . . 1 . . . . . 1 . . . . . . . . 1 . Mechanic 17 | . . . 1 . . . . . . . . . . . . . 2 . . . . 3 . . . . . . . . 11 . Operator 8 | . . . 3 . . . . . 1 . . . . . . . . . . . . . . . . . . . 2 . 2 . Drone 4 | . . . . . . . . . . . . . . . . 1 . . . . . . . . . . . . . . 3 . Turret 1 | . . . . . 1 . . . . . . . . . . . . . . . . . . . . . . . . . . . Watcher 37 | . 1 . 4 . . . 4 2 1 . 2 . . . . . 7 . . . . 7 . . . . 1 1 2 . 5 . Swarmer 131 | . 6 6 8 3 . 4 15 11 4 . 6 . 5 . . 3 8 7 . . 9 . 9 5 . 6 . . 4 . 12 . Cutter 20 | . . . . . . . . 3 . . . . . . . . . . . . . 3 . . . . . . . . . 14 Saboteur 22 | . . . . . . . . . . . . . . . . . . . . . . 7 . . . . . . . . 15 . Grunt 435 | . 19 . 31 2 . 3 23 9 29 . 1 . 5 . . 7 56 9 1 . 4 67 8 2 . 3 4 6 10 4 125 7 Brawler 35 | . . . . . . . . 1 1 . . 2 2 . . 1 3 . . . 2 3 . . . 3 . . . . 17 . Duelist 53 | . . . 1 . . . . 1 1 . . . 1 . . 2 6 . . . 3 12 2 . . 1 . . . . 23 . Protector 27 | . . . 1 . . . . . 1 . 1 . . . . 1 6 . . . . 8 . . . 1 . . . . 8 . Researcher 10 | . . . . . . . . . . . . . . . . . . . . . . . . . . . . 4 . 1 5 . Sentry 102 | . . . 10 . . . 10 7 5 . 6 1 1 . . 2 12 2 . . 2 15 1 1 . 2 2 . 5 . 17 1 Demolisher 2 | . . . . . . . . 1 . . . . . . . 1 . . . . . . . . . . . . . . . . Specialist 15 | . . . . . . . . . 2 . . . . . . . 1 . . . . . . . . . . . . . 12 . Hunter 91 | . . . . . . . 2 2 4 . 3 . 3 . . 4 14 . . . . 19 4 . . . . 2 2 . 28 4 Programmer 85 | . . . . . . . . 5 3 . 3 . 1 . . . 7 . . . . 17 . . . . 3 1 . 2 41 2 Heavy 5 | . . . . . . . . . 1 . . . . . . . 2 . . . . 1 . . . . . . . . . 1 Q-Series 2 | . . . . . . . . . . . . . . . . . . . . . . . . . . . . . . . 2 . Behemoth 12 | . . . . . . . . . . . . . . . . 1 . . . . 1 1 1 . . . 2 . 4 . 1 1 Hotshot 21 | . . . . . . . . . . . . . . . . . . . . . . . . . . . . . . . 21 . Decapitator 14 | . . . . . . . . . . . . . . . . . . . . . . . . . . . . . . . 14 . Immortal 8 | . . . . . . . . . . . . . . . . . . . . . . . . . . . . . . . 8 . Overlord 1 | . . . . . . . . . . . . . . . . . . . . . . . . . . . . . . . 1 . Investigator 1 | . . . . . . . . . . . . . . . . . . . . . . . . . . . . . . . 1 . Striker 6 | . . . . . . . . . . . . . . . . . . . . . . . . . . . . . . . 6 . Executioner 8 | . . . . . . . . . . . . . . . . . . . . . . . . . . . . . . . 8 . Alpha 7 4 | . . . . . . . . . . . . . . . . . . . . . . . . . . . . . . . 4 . V-Series 6 | . . . . . . . . . . . . . . . . . . . . . . . . . . . . . . . 6 . Zionite 7 | . . . . . 7 . . . . . . . . . . . . . . . . . . . . . . . . . . . Z-Technician 5 | . . . . . . . . . . . . . . . 5 . . . . . . . . . . . . . . . . . Z-Light 7 | . . . . . . . . . . . . . . . 7 . . . . . . . . . . . . . . . . . Tinkerer 1 | . . . . . . . . . . . . . . . . . . . . . . . . . . . . . . . 1 . Master Thief 4 | . . . . . . . . . . . . . . . . . . . 1 . . . . 3 . . . . . . . . Butcher 1 | . . . . . . . . . . . . . . . . . . . 1 . . . . . . . . . . . . . Mutant 1 | . . . . . . . . . . . . . . . . . . . 1 . . . . . . . . . . . . . Best Kill Streak 43 | . 6 3 11 3 8 4 24 20 29 . 8 3 9 . 5 12 32 13 3 . 16 29 23 8 . 5 4 8 13 5 43 18 Combat Bots Only 29 | . 6 3 10 3 1 4 20 19 23 . 4 3 9 . 3 11 17 13 3 . 16 28 23 8 . 5 3 6 12 5 29 18 Max Kills in Single Turn 8 | . 1 2 2 1 1 1 2 3 4 . 2 1 2 . 5 2 3 2 1 . 2 8 2 1 . 1 1 1 1 1 4 3 Gunslinging 2 | . . 1 1 . . . 1 2 1 . 1 . 1 . . 1 1 1 . . 1 . . . . . . . . . 1 . Exploded 4 | . . . . . . . . . . . . . . . . . . . . . . 4 . . . . . . . . 1 . Melee 1 | . . . . . . . . . . . . . . . . . . . . . . . . . . . 1 1 1 1 1 . Uniques/NPCs Destroyed 6 | . . . . . 4 1 . . . . . . . . 1 . . . . . . . . . . . . . . . . . 8R-AWN (-9/Exiles) EX-DEC (-9/Exiles) EX-HEX (-9/Exiles) EX-BIN (-9/Exiles) NK-0LA (-8/Mines) Z-Imprinter (-6/Deep Caves) Combat | -11 -10 -10 -9 -9 -9 -8 -8 -8 -7 -7 -6 -6 -6 -6 -6 -5 -5 -5 -5 -5 -4 -4 -4 -4 -4 -3 -3 -3 -2 -2 -2 -1 -------- Run | Yrd Mat Min Mat Min Exi Min Mat Gar Fac Gar Fac Low Low Zio Dee Pro Fac Upp Upp Zhi Pro Fac Upp Upp War Pro Res Tes Res Qua Frg Acc Hostile Shots Fired 7505 | . 98 8 176 11 59 6 72 88 167 . 150 6 38 . 30 88 425 33 68 . 48 900 76 17 11 56 54 122 201 176 4149 172 Missed 3068 | . 23 2 62 5 9 1 25 34 68 . 59 4 20 . 13 26 193 12 26 . 18 402 29 6 5 27 23 63 84 82 1676 71 Hits 4437 | . 75 6 114 6 50 5 47 54 99 . 91 2 18 . 17 62 232 21 42 . 30 498 47 11 6 29 31 59 117 94 2473 101 Melee 43 | . . . . . . . . 2 1 . . . . . . . 3 . . . . 4 . . . . 2 . . . 14 17 Projectile 4394 | . 75 6 114 6 50 5 47 52 98 . 91 2 18 . 17 62 229 21 42 . 30 494 47 11 6 29 29 59 117 94 2459 84 AOE 23 | . . . . . . . . 3 . . . . . . . . . . . . . 1 . . 1 . . . . . 9 9 Critical Strikes 268 | . 2 . 2 . 23 . 3 2 2 . . . 1 . . 1 9 . 7 . 1 34 2 . . 2 1 1 1 6 151 17 Actively Blocked 224 | . . . . . . . . . . . . . 1 . . . . . 7 . 1 34 2 . . 2 1 1 1 6 151 17 Part Disruptions 10 | . . . . . . . . . . . . . . . . . . . . . . 2 . . . . . . . 2 6 . Damage Taken 16012 | . 584 30 1085 42 546 23 169 364 492 . 464 . 136 . 64 351 1375 44 22 . 119 1528 121 18 33 22 333 202 188 528 6038 1091 Core 12356 | . 392 21 723 21 381 20 123 280 395 . 363 . 101 . 44 264 1074 32 18 . 88 1198 95 14 24 15 276 165 133 414 4794 888 Absorbed by Shields 26551 | . . . 6 13 167 6 157 136 363 . 305 8 68 . 114 346 1163 117 245 . 177 2893 319 69 27 178 90 320 868 456 17337 603 Redirected to Core 10500 | . 318 17 561 21 311 10 95 237 278 . 306 . 101 . 41 252 944 27 14 . 82 1006 69 13 24 13 203 135 122 366 4227 707 Ignored by Resistances 57633 | . 190 12 330 16 199 34 274 265 662 . 518 3 84 . 442 595 2357 211 604 . 306 5969 467 102 81 399 300 753 1771 995 38307 1387 Regen/Repaired (Parts) 8 | . . . . . . . . . . . . . . 8 . . . . . . . . . . . . . . . . . . Core Remaining (%) 92 | 100 . 100 . . . 100 . 99 . 100 . . . . . 100 . . . . 100 . . . . 100 . 73 . . 84 60 Volleys Fired 2462 | . 56 11 137 9 58 36 76 65 87 4 54 9 20 . 23 44 227 22 11 . 28 321 37 46 3 42 7 32 6 . 948 43 Largest 3 | . 3 3 3 3 3 3 3 3 3 2 3 3 3 . 3 3 3 3 3 . 3 3 3 3 3 3 1 1 1 . 3 2 Hottest 195 | . 195 60 69 69 76 76 83 86 86 61 91 73 73 . 73 78 90 90 90 . 115 174 146 182 182 182 58 130 38 . 194 142 Shots Fired 5391 | . 123 33 410 27 136 69 228 184 256 8 158 14 59 . 64 132 676 65 33 . 75 766 102 76 8 94 7 33 6 . 1471 78 Gun 4235 | . 123 33 410 27 136 69 228 184 256 8 158 14 59 . 64 132 676 65 33 . 68 232 37 23 4 52 . 24 6 . 1076 38 Cannon 1113 | . . . . . . . . . . . . . . . . . . . . . 7 492 65 53 4 42 7 9 . . 394 40 Launcher 43 | . . . . . . . . . . . . . . . . . . . . . . 42 . . . . . . . . 1 . Special . | . . . . . . . . . . . . . . . . . . . . . . . . . . . . . . . . . Kinetic 5133 | . 78 33 410 27 136 69 228 184 256 8 158 14 59 . 64 132 676 65 33 . 75 724 102 62 6 72 7 24 6 . 1347 78 Thermal 215 | . 45 . . . . . . . . . . . . . . . . . . . . . . 14 2 22 . 9 . . 123 . Explosive 1 | . . . . . . . . . . . . . . . . . . . . . . . . . . . . . . . 1 . Electromagnetic 42 | . . . . . . . . . . . . . . . . . . . . . . 42 . . . . . . . . . . Robot Hit Streak 68 | . 17 10 42 19 41 21 25 19 40 . 51 8 22 . 15 40 68 60 62 . 21 48 14 17 7 41 . 9 . . 66 30 Robot Miss Streak 6 | . 3 1 2 1 1 2 5 2 2 . 2 1 2 . 2 2 2 . 3 . 2 6 1 3 . 1 . 1 . . 2 1 Penetration Max 2 | . . . . . 1 2 2 1 2 . 2 . 2 . 1 1 2 1 . . 2 2 1 1 . 1 . 1 . . 2 1 Secondary Targets 140 | . 2 1 7 1 . 1 8 11 17 . 4 . 3 . 2 7 36 7 . . 5 . . . . . . . . . 28 . Max Gunslinging Chain 2 | . 1 1 1 1 . 1 1 2 1 . 1 . 1 . 1 1 2 2 . . 2 . . . . . . . . . 1 . Shots Hit Robots 4361 | . 83 21 320 20 110 50 168 119 217 . 106 12 43 . 49 120 514 52 26 1 53 541 72 34 6 79 23 38 86 19 1318 61 Core Hits 2324 | . 35 11 107 7 29 18 91 67 120 . 55 5 30 . 25 51 264 30 9 . 30 357 35 14 3 31 12 20 36 4 790 38 Critical Kills 202 | . . . 3 . 2 2 14 11 20 . 5 2 5 . 1 7 30 1 . . 2 6 3 1 . 1 . 1 . . 84 1 Critical Parts Destroyed 235 | . . 1 3 . 7 5 14 12 27 . 9 . 2 . 1 7 39 3 1 . 2 16 5 . . . . 1 . . 80 . Critical Strikes 587 | . 3 1 6 . 9 9 29 23 47 . 16 4 7 . 4 17 69 5 1 . 4 50 9 1 . 5 4 6 14 1 236 7 Burn 3 | . 3 . . . . . . . . . . . . . . . . . . . . . . . . . . . . . . . Meltdown 6 | . . . . . . . . . . . . . . . . . . . . . . . . . . . . . . . 6 . Destroy 454 | . . 1 6 . 9 9 29 23 47 . 16 4 7 . 4 17 69 5 1 . 4 24 8 1 . 1 . 2 . . 166 1 Blast 92 | . . . . . . . . . . . . . . . . . . . . . . 26 1 . . 4 . . . . 55 6 Smash 1 | . . . . . . . . . . . . . . . . . . . . . . . . . . . . . . . 1 . Sever 14 | . . . . . . . . . . . . . . . . . . . . . . . . . . . . . 11 . 3 . Impale 17 | . . . . . . . . . . . . . . . . . . . . . . . . . . . 4 4 3 1 5 . Melee Attacks 244 | . . . . . . . . . . . . . . . . 10 . . . 1 1 1 1 . . . 28 18 98 25 61 . Impact 9 | . . . . . . . . . . . . . . . . . . . . . . . . . . . . . . . 9 . Slashing 132 | . . . . . . . . . . . . . . . . . . . . . . . . . . . . 1 74 19 38 . Piercing 103 | . . . . . . . . . . . . . . . . 10 . . . 1 1 1 1 . . . 28 17 24 6 14 . Sneak Attacks 16 | . . . . . . . . . . . . . . . . 1 . . . . . 1 . . . . 1 5 6 . 2 . Combat Hostiles 9 | . . . . . . . . . . . . . . . . 1 . . . . . 1 . . . . 1 2 3 . 1 . Follow-up Attacks 22 | . . . . . . . . . . . . . . . . . . . . . . . . . . . 1 . 13 4 4 . Damage Inflicted 212133 | . 1181 302 4615 302 1664 836 3440 2558 5162 . 2901 149 978 . 3416 2918 20254 2146 1008 . 2268 36451 3202 1755 183 2973 1268 2338 6021 1696 93375 6773 Guns 108012 | . 1177 263 4615 302 1664 836 3440 2558 5162 . 2655 149 978 . 1206 2524 19468 2146 1008 . 2183 8681 1226 597 111 1444 . 827 . . 40952 1840 Cannons 74360 | . . . . . . . . . . . . . . . . . . . . . 85 16600 1976 1158 72 1529 . 252 . . 47755 4933 Explosions 14810 | . . . . . . . . . . . 246 . . . 2210 . 786 . . . . 11170 . . . . . . . . 398 . Melee 14808 | . . . . . . . . . . . . . . . . 394 . . . . . . . . . . 1268 1159 6021 1696 4270 . Ramming 143 | . 4 39 . . . . . . . . . . . . . . . . . . . . . . . . . 100 . . . . Kinetic 171627 | . 718 263 4615 302 1664 836 3440 2558 5162 . 2655 149 978 . 1206 2524 19468 2146 1008 . 2268 25281 3202 1653 132 2348 . 827 . . 79451 6773 Thermal 18867 | . 459 . . . . . . . . . 246 . . . 2210 . 602 . . . . 5064 . 102 51 625 . 252 . . 9256 . Explosive 1073 | . . . . . . . . . . . . . . . . . 184 . . . . 803 . . . . . . . . 86 . Electromagnetic 5303 | . . . . . . . . . . . . . . . . . . . . . . 5303 . . . . . . . . . . Impact 891 | . . . . . . . . . . . . . . . . . . . . . . . . . . . . . . . 891 . Slashing 10205 | . . . . . . . . . . . . . . . . . . . . . . . . . . . . 152 5405 1536 3112 . Piercing 4024 | . . . . . . . . . . . . . . . . 394 . . . . . . . . . . 1268 1007 616 160 579 . Highest Corruption 21 | . 1 1 . . 1 1 . 2 . . 2 2 2 2 . . 7 7 7 7 7 4 3 3 3 . 4 4 . 3 21 1 Average Corruption 4 | . 1 1 . . 1 1 . 1 . . 1 2 2 2 . . 5 7 7 7 7 1 3 3 3 . 3 4 . 2 10 1 Corruption Purged 32 | . . . . . . . . . . . . . . . . . . . . . . 4 . . . . . . . . 27 1 Corruption Blocked . | . . . . . . . . . . . . . . . . . . . . . . . . . . . . . . . . . Effects 249 | . 7 5 . . 1 . . 3 . . . 7 6 . . . 28 8 5 1 8 26 4 5 1 . 3 6 . 1 124 . Message Errors 47 | . 1 1 . . . . . 1 . . . 1 1 . . . 9 2 1 . 1 3 2 2 . . 2 . . . 20 . Matter Fused 61 | . . 2 . . . . . 1 . . . 3 2 . . . 4 4 2 . 2 7 . 1 . . . 5 . . 28 . Heat Flow Errors 27 | . 1 . . . . . . . . . . . . . . . 1 1 . . 1 3 1 . . . . . . . 19 . Energy Discharges 19 | . 2 1 . . . . . 1 . . . . 1 . . . 2 . 1 . . 5 . 1 . . . . . 1 4 . Parts Rejected 8 | . . . . . . . . . . . . . . . . . 2 . . . . 2 . . . . . . . . 4 . Parts Fused 1 | . . . . . . . . . . . . . . . . . . . 1 . . . . . . . . . . . . . Data Loss (minor) 15 | . . 1 . . 1 . . . . . . 3 1 . . . 3 . . . 1 . . . . . 1 . . . 4 . Data Loss (major) 17 | . 1 . . . . . . . . . . . . . . . 1 . . 1 1 2 1 1 . . . . . . 9 . Misfires 10 | . 1 . . . . . . . . . . . . . . . . 1 . . 1 . . . 1 . . 1 . . 5 . Alerts 6 | . . . . . . . . . . . . . . . . . 1 . . . . 1 . . . . . . . . 4 . Misdirections 12 | . . . . . . . . . . . . . . . . . . . . . . . . . . . . . . . 12 . Weapon Failures 26 | . 1 . . . . . . . . . . . 1 . . . 5 . . . 1 3 . . . . . . . . 15 . Overload Shots . | . . . . . . . . . . . . . . . . . . . . . . . . . . . . . . . . . Overflow Damage 8169 | . . . . . . . . . . . 76 . . . 345 . 90 . . . . 1169 24 96 . 43 30 249 425 422 4474 726 Projectiles 5413 | . . . . . . . . . . . . . . . . . . . . . . 633 24 96 . 43 . 25 . . 3866 726 Explosions 1047 | . . . . . . . . . . . 76 . . . 345 . 90 . . . . 536 . . . . . . . . . . Melee 1709 | . . . . . . . . . . . . . . . . . . . . . . . . . . . 30 224 425 422 608 . Knockbacks 227 | . . . . . . . . . . . . . . . . . . . . . . 111 17 13 1 5 . . . . 75 5 Impact 1 | . . . . . . . . . . . . . . . . . . . . . . . . . . . . . . . 1 . Kinetic 198 | . . . . . . . . . . . . . . . . . . . . . . 98 15 8 1 5 . . . . 67 4 Secondary 28 | . . . . . . . . . . . . . . . . . . . . . . 13 2 5 . . . . . . 7 1 Self-Inflicted Damage 159 | . . . . . . . . . . . . . . . . . 18 . . . . . . . . . . 100 . . 41 . Shots 2 | . . . . . . . . . . . . . . . . . 1 . . . . . . . . . . . . . 1 . Rammed 6 | . 1 5 . . . . . . . . . . . . . . . . . . . . . . . . . . . . . . Targets Rammed 7 | . 1 6 . . . . . . . . . . . . . . . . . . . . . . . . . . . . . . Kicked . | . . . . . . . . . . . . . . . . . . . . . . . . . . . . . . . . . Crushed 1 | . . 1 . . . . . . . . . . . . . . . . . . . . . . . . . . . . . . Highest Temperature 394 | . 348 . . . . 6 1 1 7 . 2 . 3 . 289 28 268 146 28 5 177 394 253 175 117 267 52 198 2 . 216 84 Average Temperature 61 | . 102 . . . . 4 1 1 4 . 2 . 3 . 69 11 24 47 12 3 13 79 45 42 33 90 15 66 2 . 39 18 Received Heat Transfer 1380 | . 303 . 558 20 . 14 37 2 21 . 8 . 4 . 45 28 6 2 . . 3 47 . . . . . . 5 . 277 . Effects 2 | . . . . . . . . . . . . . . . . . . . . . . 2 . . . . . . . . . . Interference 2 | . . . . . . . . . . . . . . . . . . . . . . 2 . . . . . . . . . . Siege Activations . | . . . . . . . . . . . . . . . . . . . . . . . . . . . . . . . . . Martial Activations . | . . . . . . . . . . . . . . . . . . . . . . . . . . . . . . . . . Shielding Activations . | . . . . . . . . . . . . . . . . . . . . . . . . . . . . . . . . . Robots Disrupted 2 | . . . . . . . . . . . . . . . . . . . . . . 2 . . . . . . . . . . Combat Hostiles 2 | . . . . . . . . . . . . . . . . . . . . . . 2 . . . . . . . . . . Robots Corrupted 27 | . . . . . . . . . . . . . . . . . . . . . . 26 . . . . . . . . 1 . Combat Hostiles 27 | . . . . . . . . . . . . . . . . . . . . . . 26 . . . . . . . . 1 . Parts Fried 40 | . . . . . . . . . . . . . 1 . . . . . . . . 37 . . . . . . . . 2 . Impact Corruptions 5 | . . . . . . . . . . . . . . . . . . . . . . 1 . 1 . . . . . . 3 . Robots Melted 7 | . 1 . . . . . . . . . . . . . . . . . . . . . . . . . . . . . 6 . Combat Hostiles 6 | . 1 . . . . . . . . . . . . . . . . . . . . . . . . . . . . . 5 . Parts Melted 15 | . 1 . . . . . . . . . . . . . . . 1 . . . . 4 . . . . . . 1 . 7 1 Heat Transferred 11351 | . 1295 . . . . . . . . . 200 . . . . . 400 . . . . 3400 . 111 37 609 . 150 . . 5149 . Parts Sabotaged 4 | . . . . . . . . . . . . . . . . . 3 . . . . . . . . . . . . . 1 . Parts Stolen . | . . . . . . . . . . . . . . . . . . . . . . . . . . . . . . . . . Parts Stripped . | . . . . . . . . . . . . . . . . . . . . . . . . . . . . . . . . . Power Chain Reactions 13 | . . . . . . . . . . . . . . . . . . . . . . 13 . . . . . . . . . . Alert | -11 -10 -10 -9 -9 -9 -8 -8 -8 -7 -7 -6 -6 -6 -6 -6 -5 -5 -5 -5 -5 -4 -4 -4 -4 -4 -3 -3 -3 -2 -2 -2 -1 ------- Run | Yrd Mat Min Mat Min Exi Min Mat Gar Fac Gar Fac Low Low Zio Dee Pro Fac Upp Upp Zhi Pro Fac Upp Upp War Pro Res Tes Res Qua Frg Acc Maximum Alert Level 5 | . 1 . 3 1 . . 3 4 4 3 2 . . . . . 5 . . . . 5 . . . . 1 3 4 2 5 5 Low Security (%) 19 | 100 22 100 36 . . 100 24 . . . 71 . . . . . . . . . . 4 . . . . 70 26 . . . . Level 1 11 | . 77 . 9 100 . . 19 . . . 13 . . . . . . . . . . 4 . . . . 29 24 2 35 . . Level 2 8 | . . . 20 . . . 19 25 16 4 14 . . . . . 4 . . . . 2 . . . . . 46 23 64 4 . Level 3 17 | . . . 33 . . . 36 23 75 95 . . . . . . 34 . . . . 3 . . . . . 2 65 . 3 . Level 4 11 | . . . . . . . . 51 8 . . . . . . . 11 . . . . 32 . . . . . . 8 . 18 . Level 5 18 | . . . . . . . . . . . . . . . . . . . . . . 14 . . . . . . . . 62 18 High Security 12 | . . . . . . . . . . . . . . . . . 48 . . . . 38 . . . . . . . . 10 81 Max Security . | . . . . . . . . . . . . . . . . . . . . . . . . . . . . . . . . . Sterilizations 4 | . . . 1 . . . 1 . . . . . . . . . 1 . . . . 1 . . . . . . . . . . Peak Influence 8373 | . 383 110 1066 394 . 131 1043 1577 1167 881 513 . . . . . 4490 . . . . 6217 . . . . 288 723 1160 662 8373 5912 Initial 4403 | . . 53 . 344 . . 26 402 716 661 400 . . . . . 714 . . . . 171 . . . . 91 140 361 563 324 4403 Average 1735 | . 238 19 454 370 . 58 493 1054 828 851 142 . . . . . 2135 . . . . 2483 . . . . 183 391 811 434 3662 5105 Influence Increases 38668 | . 844 160 1666 120 . 164 1541 1175 1556 220 809 60 380 . . 679 5786 360 35 5 471 7176 560 170 30 325 517 738 1029 479 10094 1519 Destroy 0b10 Robot/C 22520 | . 500 120 1000 100 . 140 1000 860 1000 . 440 60 360 . . 480 2620 360 20 . 420 2960 500 160 . 300 240 260 500 140 7380 600 Destroy 0b10 Robot/NC 855 | . 15 20 80 . . . 60 20 55 . 55 . . . . 15 135 . . 5 . 165 . . . 5 5 15 20 . 180 5 Destroy Leader 3390 | . 114 20 268 20 . 20 218 50 204 . 148 . 20 . . 60 458 . . . 40 558 60 10 . 20 52 34 134 . 770 112 Allied During Kill 228 | . . . . . . . . 23 . . 4 . . . . 124 42 . . . 11 24 . . . . . . . . . . Successful Hack 297 | . 1 . 14 . . . 23 10 40 . 24 . . . . . 28 . . . . 32 . . . . 71 . . 54 . . Select Force Hacks 860 | . 210 . 270 . . . 170 . 60 . . . . . . . 150 . . . . . . . . . . . . . . . Disable Machine 1989 | . . . . . . . 27 . 27 . 54 . . . . . 504 . . . . 936 . . . . . 54 27 9 279 72 Anti-Garrison Action 600 | . . . . . . . . 100 . 200 . . . . . . . . . . . . . . . . . . . . 150 150 Destroy Structure 3654 | . 4 . 4 . . 4 43 37 5 20 54 . . . . . 1114 . . . . 1616 . . . . 14 30 18 6 435 250 Advance Influence 450 | . . . . . . . . . . . . . . . . . 450 . . . . . . . . . . . . . . . Partial Spotted 825 | . . . . . . . . . 30 . 15 . . . . . 180 . . . . 165 . . . . 90 90 120 15 75 45 Lose Combat Pursuer 3000 | . . . 30 . . . . 75 135 . 15 . . . . . 105 . 15 . . 720 . . 30 . 45 255 210 255 825 285 Influence Decreases 32756 | . 680 324 620 802 364 83 915 305 2061 411 1415 314 261 140 . 200 1775 2100 864 1926 160 1270 2943 1225 2779 200 384 288 617 967 2368 3995 Entered New Map 20767 | . . 111 . 702 364 . 55 305 861 411 481 124 7 140 . . 215 2010 764 1921 . 140 2783 1065 2779 30 64 148 377 587 338 3985 Time Decay 7811 | . 670 213 620 100 . 83 260 . 440 . 380 190 240 . . 200 330 90 100 5 160 610 160 160 . 170 140 140 240 70 2030 10 Lost Part 20 | . 10 . . . . . . . . . . . . . . . . . . . . 10 . . . . . . . . . . Lost Ally 345 | . . . . . . . . . 10 . 41 . 14 . . . 180 . . . . 60 . . . . 30 . . 10 . . Purge Threat 3813 | . . . . . . . 600 . 750 . 513 . . . . . 1050 . . . . 450 . . . . 150 . . 300 . . Squads Dispatched 223 | . 8 . 10 . . . 8 . 15 . 9 . . . . 1 32 . . . . 42 . . . 1 1 4 4 6 68 14 Investigation 46 | . 8 . 5 . . . 8 . 3 . 1 . . . . . 13 . . . . 2 . . . . . 2 1 . 3 . Extermination 25 | . . . . . . . . . 2 . 3 . . . . . 1 . . . . 4 . . . . 1 1 . 1 12 . Reinforcement 36 | . . . 4 . . . . . 5 . 1 . . . . . 2 . . . . 7 . . . . . 1 3 5 5 3 Assault 100 | . . . 1 . . . . . 4 . . . . . . 1 15 . . . . 25 . . . 1 . . . . 48 5 Garrison 16 | . . . . . . . . . 1 . 4 . . . . . 1 . . . . 4 . . . . . . . . . 6 Intercept . | . . . . . . . . . . . . . . . . . . . . . . . . . . . . . . . . . Searches Triggered . | . . . . . . . . . . . . . . . . . . . . . . . . . . . . . . . . . Construction Impeded 4 | . . . . . . . . . . . 1 . . . . . . . . . . 2 . . . . . . . . 1 . Haulers Reinforced 7 | . . . . . . . . . 3 . . . . . . . 1 . . . . 3 . . . . . . . . . . Active Scanning Responses . | . . . . . . . . . . . . . . . . . . . . . . . . . . . . . . . . . Cargo Convoy Interrupts 4 | . . . . . . . . . 1 . 1 . . . . . 1 . . . . 1 . . . . . . . . . . Stealth | -11 -10 -10 -9 -9 -9 -8 -8 -8 -7 -7 -6 -6 -6 -6 -6 -5 -5 -5 -5 -5 -4 -4 -4 -4 -4 -3 -3 -3 -2 -2 -2 -1 --------- Run | Yrd Mat Min Mat Min Exi Min Mat Gar Fac Gar Fac Low Low Zio Dee Pro Fac Upp Upp Zhi Pro Fac Upp Upp War Pro Res Tes Res Qua Frg Acc Distress Signals 39 | . . . 3 . . . 2 2 6 . 1 . . . . . 3 . . . . 2 . . . . 1 . 12 3 4 . Communications Jammed . | . . . . . . . . . . . . . . . . . . . . . . . . . . . . . . . . . Distress Signals . | . . . . . . . . . . . . . . . . . . . . . . . . . . . . . . . . . Times Spotted 1635 | . 28 6 70 5 8 8 52 41 77 . 31 3 17 . 13 25 139 18 12 . 19 249 28 9 11 14 25 36 60 48 516 67 Peak Tracking Total 29 | . 6 3 8 3 9 4 5 6 9 . 7 3 8 . 4 7 11 13 7 . 7 21 5 3 9 5 10 15 12 17 29 23 Tactical Retreats 76 | . . . 1 . 1 1 . 2 5 . 1 . . . 1 . 5 . 2 . . 13 . . 1 . 2 5 5 5 23 3 Traps | -11 -10 -10 -9 -9 -9 -8 -8 -8 -7 -7 -6 -6 -6 -6 -6 -5 -5 -5 -5 -5 -4 -4 -4 -4 -4 -3 -3 -3 -2 -2 -2 -1 ------- Run | Yrd Mat Min Mat Min Exi Min Mat Gar Fac Gar Fac Low Low Zio Dee Pro Fac Upp Upp Zhi Pro Fac Upp Upp War Pro Res Tes Res Qua Frg Acc Traps Triggered 57 | . 4 . 3 . . . 1 4 3 1 . . . . . . 2 . . . . 8 . . . . 2 2 2 . 25 . Indirectly . | . . . . . . . . . . . . . . . . . . . . . . . . . . . . . . . . . Trap Hack Attempts . | . . . . . . . . . . . . . . . . . . . . . . . . . . . . . . . . . Triggered . | . . . . . . . . . . . . . . . . . . . . . . . . . . . . . . . . . Disarmed . | . . . . . . . . . . . . . . . . . . . . . . . . . . . . . . . . . Reprogrammed . | . . . . . . . . . . . . . . . . . . . . . . . . . . . . . . . . . Reused . | . . . . . . . . . . . . . . . . . . . . . . . . . . . . . . . . . Traps Extracted . | . . . . . . . . . . . . . . . . . . . . . . . . . . . . . . . . . Installed . | . . . . . . . . . . . . . . . . . . . . . . . . . . . . . . . . . Triggered . | . . . . . . . . . . . . . . . . . . . . . . . . . . . . . . . . . Machines | -11 -10 -10 -9 -9 -9 -8 -8 -8 -7 -7 -6 -6 -6 -6 -6 -5 -5 -5 -5 -5 -4 -4 -4 -4 -4 -3 -3 -3 -2 -2 -2 -1 ---------- Run | Yrd Mat Min Mat Min Exi Min Mat Gar Fac Gar Fac Low Low Zio Dee Pro Fac Upp Upp Zhi Pro Fac Upp Upp War Pro Res Tes Res Qua Frg Acc Machines Disabled 278 | . . . . . 7 . 3 6 3 . 6 . . 3 2 . 61 2 . . . 121 1 1 1 1 . 6 3 1 41 9 Max in Single Turn 16 | . . . . . 1 . 1 1 1 . 5 . . 1 2 . 7 1 . . . 16 1 1 1 1 . 2 1 1 5 1 Garrison Access 10 | . . . . . . . . . . . . . . . . . 2 . . . . 1 . . . . 2 1 1 1 1 1 Garrison Relay 4 | . . . . . . . . 4 . . . . . . . . . . . . . . . . . . . . . . . . Machines Repaired . | . . . . . . . . . . . . . . . . . . . . . . . . . . . . . . . . . Machines Dismantled 4 | . . . . . . . . . . . . . . 3 . . . . . . . . . . 1 . . . . . . . Machines Sabotaged 7 | . 3 . 3 . . . 1 . . . . . . . . . . . . . . . . . . . . . . . . . Overloaded Fab Kills . | . . . . . . . . . . . . . . . . . . . . . . . . . . . . . . . . . Hacking | -11 -10 -10 -9 -9 -9 -8 -8 -8 -7 -7 -6 -6 -6 -6 -6 -5 -5 -5 -5 -5 -4 -4 -4 -4 -4 -3 -3 -3 -2 -2 -2 -1 --------- Run | Yrd Mat Min Mat Min Exi Min Mat Gar Fac Gar Fac Low Low Zio Dee Pro Fac Upp Upp Zhi Pro Fac Upp Upp War Pro Res Tes Res Qua Frg Acc Machines Accessed 144 | . 9 . 13 . 1 . 12 4 18 4 9 3 . . . . 27 2 . 4 . 13 . 1 . . 9 4 2 5 4 . Terminals 87 | . 7 . 7 . . . 6 4 11 4 7 . . . . . 15 1 . . . 10 . . . . 6 3 1 4 1 . Fabricators 8 | . . . . . . . . . 1 . 1 . . . . . 2 . . . . 1 . . . . 1 . . . 2 . Repair Stations 6 | . . . 2 . . . 1 . 1 . 1 . . . . . 1 . . . . . . . . . . . . . . . Recycling Units 14 | . 2 . 2 . . . 2 . 3 . . . . . . . 5 . . . . . . . . . . . . . . . Scanalyzers 7 | . . . 2 . . . 2 . 1 . . . . . . . 2 . . . . . . . . . . . . . . . Garrison Access 12 | . . . . . . . 1 . 1 . . . . . . . 2 . . . . 2 . . . . 2 1 1 1 1 . Total Hacks 361 | . 19 . 23 . 1 . 28 8 43 8 27 6 . . . . 71 9 . 17 . 36 . 1 . . 25 11 4 14 10 . Successful 218 | . 12 . 12 . 1 . 19 4 25 4 20 6 . . . . 41 9 . 17 . 18 . 1 . . 15 2 1 7 4 . Failed 143 | . 7 . 11 . . . 9 4 18 4 7 . . . . . 30 . . . . 18 . . . . 10 9 3 7 6 . Catastrophic 27 | . 2 . . . . . 2 . 4 . 1 . . . . . 7 . . . . 3 . . . . 2 3 . 1 2 . Database Lockouts . | . . . . . . . . . . . . . . . . . . . . . . . . . . . . . . . . . Manual 245 | . 18 . 24 . 1 . 26 . 36 . 23 . . 1 . . 60 . . . . 27 . . . . 18 . 1 10 . . Terminals 251 | . 14 . 15 . . . 22 8 28 8 24 . . . . . 52 8 . . . 31 . . . . 19 8 1 12 1 . Fabricators 16 | . . . . . . . . . 2 . 2 . . . . . 2 . . . . 2 . . . . 2 . . . 6 . Repair Stations 8 | . . . 4 . . . 1 . 1 . 1 . . . . . 1 . . . . . . . . . . . . . . . Recycling Units 29 | . 5 . 2 . . . 2 . 9 . . . . . . . 11 . . . . . . . . . . . . . . . Scanalyzers 8 | . . . 2 . . . 2 . 2 . . . . . . . 2 . . . . . . . . . . . . . . . Garrison Access 23 | . . . . . . . 1 . 1 . . . . . . . 3 . . . . 3 . . . . 4 3 3 2 3 . Terminal Hacks 96 | . 2 . . . 1 . 9 4 6 4 8 6 . . . . 11 9 . 17 . 9 . 1 . . 5 1 . 2 1 . Record 20 | . 1 . . . . . . . . . . 4 . . . . . 8 . 5 . . . . . . 1 . . . 1 . Part Schematic 5 | . . . . . . . 1 . . . . . . . . . . . . 4 . . . . . . . . . . . . Robot Schematic 1 | . . . . . . . 1 . . . . . . . . . . . . . . . . . . . . . . . . . Robot Analysis 12 | . 1 . . . . . 2 . . . . . . . . . 1 . . 4 . 2 . . . . 2 . . . . . Prototype ID Bank 4 | . . . . . . . . . . . . . . . . . . . . 4 . . . . . . . . . . . . Open Door 7 | . . . . . . . . 1 . 1 . 2 . . . . . 1 . . . . . 1 . . . 1 . . . . Branch Access Points 3 | . . . . . . . . . . . 1 . . . . . . . . . . 1 . . . . 1 . . . . . Emergency Access Points 2 | . . . . . . . . 1 . 1 . . . . . . . . . . . . . . . . . . . . . . Fabricator Index 1 | . . . . . . . . . . . 1 . . . . . . . . . . . . . . . . . . . . . Alert Level 4 | . . . . . . . 1 . . . 1 . . . . . 1 . . . . 1 . . . . . . . . . . Unreport Threat 26 | . . . . . . . 4 . 5 . 4 . . . . . 7 . . . . 3 . . . . 1 . . 2 . . Recall Assault 1 | . . . . . . . . . . . . . . . . . . . . . . 1 . . . . . . . . . . Hauler Manifests 5 | . . . . . . . . . 1 . 1 . . . . . 2 . . . . 1 . . . . . . . . . . Patrol Navigation 2 | . . . . . . . . 1 . 1 . . . . . . . . . . . . . . . . . . . . . . Security Stations 2 | . . . . . . . . 1 . 1 . . . . . . . . . . . . . . . . . . . . . . Proto ID Catalog 1 | . . . . . 1 . . . . . . . . . . . . . . . . . . . . . . . . . . . Fabricator Hacks 3 | . . . . . . . . . . . . . . . . . . . . . . . . . . . . . . . 3 . Load Schematic 2 | . . . . . . . . . . . . . . . . . . . . . . . . . . . . . . . 2 . Build 1 | . . . . . . . . . . . . . . . . . . . . . . . . . . . . . . . 1 . Repair Station Hacks . | . . . . . . . . . . . . . . . . . . . . . . . . . . . . . . . . . Recycling Unit Hacks . | . . . . . . . . . . . . . . . . . . . . . . . . . . . . . . . . . Scanalyzer 2 | . . . . . . . . . 2 . . . . . . . . . . . . . . . . . . . . . . . Insert Component 1 | . . . . . . . . . 1 . . . . . . . . . . . . . . . . . . . . . . . Analyze 1 | . . . . . . . . . 1 . . . . . . . . . . . . . . . . . . . . . . . Garrison Access Hacks 10 | . . . . . . . 1 . 1 . . . . . . . 2 . . . . 1 . . . . 2 1 1 1 . . Unlock Access 2 | . . . . . . . 1 . 1 . . . . . . . . . . . . . . . . . . . . . . . Seal Access 8 | . . . . . . . . . . . . . . . . . 2 . . . . 1 . . . . 2 1 1 1 . . Unauthorized Hacks 104 | . 7 . 12 . . . 9 . 16 . 12 . . . . . 28 . . . . 8 . . . . 8 . . 4 . . Terminals 65 | . 5 . 7 . . . 4 . 9 . 10 . . . . . 13 . . . . 7 . . . . 6 . . 4 . . Track 1 | . . . . . . . . . . . 1 . . . . . . . . . . . . . . . . . . . . . Assimilate 17 | . . . 1 . . . . . 2 . 2 . . . . . 5 . . . . 5 . . . . 1 . . 1 . . Botnet 26 | . . . . . . . 3 . 7 . 4 . . . . . 4 . . . . 1 . . . . 4 . . 3 . . Disrupt 1 | . . . . . . . . . . . . . . . . . 1 . . . . . . . . . . . . . . . Operators 3 | . . . . . . . . . . . 1 . . . . . . . . . . 1 . . . . 1 . . . . . Skim 2 | . . . . . . . . . . . 2 . . . . . . . . . . . . . . . . . . . . . Sabotage 15 | . 5 . 6 . . . 1 . . . . . . . . . 3 . . . . . . . . . . . . . . . Fabricators 7 | . . . . . . . . . 1 . 1 . . . . . 2 . . . . 1 . . . . 2 . . . . . Liberate 2 | . . . . . . . . . . . . . . . . . 1 . . . . . . . . . 1 . . . . . Haulers 5 | . . . . . . . . . 1 . 1 . . . . . 1 . . . . 1 . . . . 1 . . . . . Repair Stations 5 | . . . 1 . . . 1 . 1 . 1 . . . . . 1 . . . . . . . . . . . . . . . Mechanics 2 | . . . . . . . . . 1 . 1 . . . . . . . . . . . . . . . . . . . . . Patch 3 | . . . 1 . . . 1 . . . . . . . . . 1 . . . . . . . . . . . . . . . Recycling Units 21 | . 2 . 2 . . . 2 . 5 . . . . . . . 10 . . . . . . . . . . . . . . . Monitor 2 | . . . . . . . . . . . . . . . . . 2 . . . . . . . . . . . . . . . Reject 3 | . . . . . . . . . 1 . . . . . . . 2 . . . . . . . . . . . . . . . Recyclers 2 | . . . . . . . . . 1 . . . . . . . 1 . . . . . . . . . . . . . . . Mask 3 | . . . . . . . . . 1 . . . . . . . 2 . . . . . . . . . . . . . . . Tunnel 11 | . 2 . 2 . . . 2 . 2 . . . . . . . 3 . . . . . . . . . . . . . . . Scanalyzers 6 | . . . 2 . . . 2 . . . . . . . . . 2 . . . . . . . . . . . . . . . Extract 6 | . . . 2 . . . 2 . . . . . . . . . 2 . . . . . . . . . . . . . . . Garrison Access . | . . . . . . . . . . . . . . . . . . . . . . . . . . . . . . . . . Data Cores Recovered 1 | . . . . . . . . . 1 . . . . . . . . . . . . . . . . . . . . . . . Used . | . . . . . . . . . . . . . . . . . . . . . . . . . . . . . . . . . Hacking Detections 84 | . 5 . 5 . . . 4 2 13 3 7 . . . . . 14 1 . . . 9 . . . . 8 3 2 5 3 . Full Trace Events 17 | . 2 . 2 . . . 1 . . 2 1 . . . . . 3 1 . . . 1 . . . . . 1 . . 3 . Feedback Events 2 | . 1 . . . . . . . . . . . . . . . 1 . . . . . . . . . . . . . . . Corruption 2 | . 1 . . . . . . . . . . . . . . . 1 . . . . . . . . . . . . . . . Feedback Blocked . | . . . . . . . . . . . . . . . . . . . . . . . . . . . . . . . . . Robot Schematics Acquired 7 | . . . . . . . 1 . . . . . . . . . . . . . . . . . . . . 3 . . 3 . Robots Built . | . . . . . . . . . . . . . . . . . . . . . . . . . . . . . . . . . Authchips . | . . . . . . . . . . . . . . . . . . . . . . . . . . . . . . . . . Time . | . . . . . . . . . . . . . . . . . . . . . . . . . . . . . . . . . Total Robot Build Rating . | . . . . . . . . . . . . . . . . . . . . . . . . . . . . . . . . . Part Schematics Acquired 53 | . . . 6 . . . 6 . 1 . . . . . . . 9 . . 4 . . . . . . . 8 . 3 16 . Parts Built 1 | . . . . . . . . . . . . . . . . . . . . . . . . . . . . . . . 1 . Authchips . | . . . . . . . . . . . . . . . . . . . . . . . . . . . . . . . . . Time 62 | . . . . . . . . . . . . . . . . . . . . . . . . . . . . . . . 62 . Total Part Build Rating 7 | . . . . . . . . . . . . . . . . . . . . . . . . . . . . . . . 7 . Parts Repaired . | . . . . . . . . . . . . . . . . . . . . . . . . . . . . . . . . . Time . | . . . . . . . . . . . . . . . . . . . . . . . . . . . . . . . . . Parts Recycled . | . . . . . . . . . . . . . . . . . . . . . . . . . . . . . . . . . Recycled Matter . | . . . . . . . . . . . . . . . . . . . . . . . . . . . . . . . . . Retrieved Matter . | . . . . . . . . . . . . . . . . . . . . . . . . . . . . . . . . . Retrieved Components . | . . . . . . . . . . . . . . . . . . . . . . . . . . . . . . . . . Parts Scanalyzed 1 | . . . . . . . . . 1 . . . . . . . . . . . . . . . . . . . . . . . Part Schematics Acquired 1 | . . . . . . . . . 1 . . . . . . . . . . . . . . . . . . . . . . . Parts Damaged 1 | . . . . . . . . . 1 . . . . . . . . . . . . . . . . . . . . . . . Bothacking | -11 -10 -10 -9 -9 -9 -8 -8 -8 -7 -7 -6 -6 -6 -6 -6 -5 -5 -5 -5 -5 -4 -4 -4 -4 -4 -3 -3 -3 -2 -2 -2 -1 ------------ Run | Yrd Mat Min Mat Min Exi Min Mat Gar Fac Gar Fac Low Low Zio Dee Pro Fac Upp Upp Zhi Pro Fac Upp Upp War Pro Res Tes Res Qua Frg Acc Used RIF Installer . | . . . . . . . . . . . . . . . . . . . . . . . . . . . . . . . . . Robots Hacked . | . . . . . . . . . . . . . . . . . . . . . . . . . . . . . . . . . Non-combat . | . . . . . . . . . . . . . . . . . . . . . . . . . . . . . . . . . Combat . | . . . . . . . . . . . . . . . . . . . . . . . . . . . . . . . . . Robot Hacks Applied . | . . . . . . . . . . . . . . . . . . . . . . . . . . . . . . . . . Relay Couplers Released 13 | . . . . . . . . 7 . . . . . . . . 1 . . . . 1 . . . . . . . . 2 2 Machine Destruction 13 | . . . . . . . . 7 . . . . . . . . 1 . . . . 1 . . . . . . . . 2 2 Fabnet Peak Effective % . | . . . . . . . . . . . . . . . . . . . . . . . . . . . . . . . . . Robots Rewired 20 | . . . . . . . . 2 . 7 1 . 2 . . 2 1 . . . 2 . 1 . 1 1 . . . . . . Allies Hacked . | . . . . . . . . . . . . . . . . . . . . . . . . . . . . . . . . . Hacks Repelled . | . . . . . . . . . . . . . . . . . . . . . . . . . . . . . . . . . Allies | -11 -10 -10 -9 -9 -9 -8 -8 -8 -7 -7 -6 -6 -6 -6 -6 -5 -5 -5 -5 -5 -4 -4 -4 -4 -4 -3 -3 -3 -2 -2 -2 -1 -------- Run | Yrd Mat Min Mat Min Exi Min Mat Gar Fac Gar Fac Low Low Zio Dee Pro Fac Upp Upp Zhi Pro Fac Upp Upp War Pro Res Tes Res Qua Frg Acc Total Allies 47 | . . . . 1 . . . 2 1 9 3 . 2 7 . 2 9 . . . 2 4 1 . 1 1 1 . . 1 . . Largest Group 11 | . . . . 1 1 . . 2 1 9 10 2 2 9 9 8 11 . . . 2 4 3 3 3 1 1 . . 1 . . Highest-Rated Group 428 | . . . . 31 31 . . 78 10 338 370 36 61 428 428 374 426 . . . 96 132 102 102 102 48 48 . . 45 . . Highest-Rated Ally 96 | . . . . 31 31 . . 39 10 95 95 26 32 96 96 96 96 . . . 49 49 47 47 47 48 48 . . 45 . . Initial Warlord ECA Mod 54 | . . . . . . . . . 3 3 4 4 4 4 4 3 3 3 3 3 2 2 2 2 2 1 1 1 . . . . Total Orders 11 | . . . . . . . . . . . 4 . . . 2 . . . . . . 5 . . . . . . . . . . STAY 7 | . . . . . . . . . . . 3 . . . 1 . . . . . . 3 . . . . . . . . . . FOLLOW 4 | . . . . . . . . . . . 1 . . . 1 . . . . . . 2 . . . . . . . . . . Ally Attacks 217 | . . . . . 14 . . 19 . . 11 . . . 47 13 94 . . . 1 6 . 8 . . 4 . . . . . Total Damage 5990 | . . . . . 212 . . 206 . . 367 . . . 573 125 3999 . . . 6 192 . 136 . . 174 . . . . . Kills 50 | . . . . . 5 . . 3 . . 3 . . . 4 4 28 . . . . 2 . . . . 1 . . . . . Allies Corrupted 1 | . . . . . . . . . . . . . . . . . 1 . . . . . . . . . . . . . . . Allies Melted . | . . . . . . . . . . . . . . . . . . . . . . . . . . . . . . . . . Turrets Deployed 1 | . . . . . 1 . . . . . . . . . . . . . . . . . . . . . . . . . . . Intel | -11 -10 -10 -9 -9 -9 -8 -8 -8 -7 -7 -6 -6 -6 -6 -6 -5 -5 -5 -5 -5 -4 -4 -4 -4 -4 -3 -3 -3 -2 -2 -2 -1 ------- Run | Yrd Mat Min Mat Min Exi Min Mat Gar Fac Gar Fac Low Low Zio Dee Pro Fac Upp Upp Zhi Pro Fac Upp Upp War Pro Res Tes Res Qua Frg Acc Active Infowar (turns) 68 | . . . . . 55 7 . . . . . . 2 . . . . . . . . 1 . . 1 . 2 . . . . . Optics 1 | . . . . . . . . . . . . . . . . . . . . . . . . . 1 . . . . . . . Sensors 1 | . . . . . . . . . . . . . . . . . . . . . . 1 . . . . . . . . . . Decoding 2 | . . . . . . . . . . . . . 2 . . . . . . . . . . . . . . . . . . . Cloaking 2 | . . . . . . . . . . . . . . . . . . . . . . . . . . . 2 . . . . . Jamming 62 | . . . . . 55 7 . . . . . . . . . . . . . . . . . . . . . . . . . . Robot Analysis Total 12 | . 1 . . . . . 2 . . . . . . . . . 1 . . 4 . 2 . . . . 2 . . . . . Derelict Logs Recovered 22 | . . 2 . 3 . . . . . . . 3 2 2 . 1 . 2 3 . 1 . 2 1 . . . . . . . . Drone Launches . | . . . . . . . . . . . . . . . . . . . . . . . . . . . . . . . . . Drone Recoveries . | . . . . . . . . . . . . . . . . . . . . . . . . . . . . . . . . . Exploration | -11 -10 -10 -9 -9 -9 -8 -8 -8 -7 -7 -6 -6 -6 -6 -6 -5 -5 -5 -5 -5 -4 -4 -4 -4 -4 -3 -3 -3 -2 -2 -2 -1 ------------- Run | Yrd Mat Min Mat Min Exi Min Mat Gar Fac Gar Fac Low Low Zio Dee Pro Fac Upp Upp Zhi Pro Fac Upp Upp War Pro Res Tes Res Qua Frg Acc Turns Passed 21591 | 46 1384 1030 1314 218 562 246 533 411 889 552 861 385 483 355 700 416 1326 198 202 41 335 1981 325 327 132 356 297 298 492 156 4542 198 Spaces Moved 48372 | 45 817 612 1729 543 1134 609 1262 887 1913 854 1901 1556 1054 796 1527 1125 4214 1117 1310 194 1040 4652 1109 1446 850 983 1144 1269 1922 818 7214 726 Core 23 | 7 . . . . . . . . . . . . . . . . . . . . . 16 . . . . . . . . . . Treads 1351 | . 519 612 199 . 21 . . . . . . . . . . . . . . . . . . . . . . . . . . . Legs . | . . . . . . . . . . . . . . . . . . . . . . . . . . . . . . . . . Wheels 336 | 38 298 . . . . . . . . . . . . . . . . . . . . . . . . . . . . . . . Hover . | . . . . . . . . . . . . . . . . . . . . . . . . . . . . . . . . . Flight 46662 | . . . 1530 543 1113 609 1262 887 1913 854 1901 1556 1054 796 1527 1125 4214 1117 1310 194 1040 4636 1109 1446 850 983 1144 1269 1922 818 7214 726 Fastest Speed 7 | 50 90 160 25 25 25 25 23 23 23 17 23 23 23 23 8 9 10 11 7 11 11 7 11 11 10 11 10 10 9 10 8 12 Average Speed 19 | 83 134 160 41 25 27 25 23 23 23 22 23 23 23 23 16 10 11 11 10 11 11 11 11 11 10 11 10 10 9 10 11 12 Slowest Speed 160 | 90 160 160 160 25 160 25 25 23 24 26 23 23 23 23 23 11 73 11 11 11 11 125 11 11 11 11 11 10 10 74 24 12 Overloaded Moves 97 | . . . . . . . . . . 33 . . . . 16 8 . . 1 . . 9 . . . . . . 1 . 29 . Propulsion Burnouts . | . . . . . . . . . . . . . . . . . . . . . . . . . . . . . . . . . Robots Hopped 348 | . . . 40 1 . 7 10 . 33 11 37 1 1 . . 3 55 2 7 . . 38 3 . 4 1 1 11 6 14 49 13 Potential Cave-ins 14 | . . . . . . . . . . . . . . . . . 7 . . . . 4 . . . . . . 3 . . . Cave-ins Triggered . | . . . . . . . . . . . . . . . . . . . . . . . . . . . . . . . . . Teleports 2 | . . . . . . . . . . . . . . . . . . . . 1 . . . . . . . . . . 1 . Exploration Rate (%) 82 | 4 96 98 98 98 89 99 93 90 53 95 43 98 98 81 87 98 65 98 99 62 98 82 97 97 88 98 35 95 76 96 90 25 Regions Visited 32 Branch Regions 20 Pre-discovered Areas 27 | . 2 2 2 2 . . 2 . 2 . . 2 . 4 . . 3 2 1 3 . . . . . . . . . . . . Known Exits Taken 21 | . . . 1 . . . 1 . 1 . 1 . 1 1 . 1 1 1 1 1 1 1 1 1 . 1 1 1 1 1 1 . Unknown Exits Taken 9 | 1 1 1 . 1 1 1 . . . . . 1 . . 1 . . . . . . . . . 1 . . . . . . . Scrap Searched 44 | . . 2 . 3 . 1 . . . . . 4 5 3 . 4 . 6 2 . 2 . 4 3 . 5 . . . . . . Spaces Dug 236 | . . . . . 3 . . . . . 3 . . . . . 105 . . . 1 99 4 5 1 1 5 1 7 1 . . Terrain Destroyed 2347 | . . . . . 9 7 59 9 4 3 71 1 7 . 2 22 615 28 22 . 54 957 49 41 2 27 9 18 13 1 205 112 Melee 6 | . . . . . . . . . . . . . . . . . . . . . . . . . . . 2 . 3 1 . . Projectile 979 | . . . . . 7 7 17 9 4 3 10 1 7 . 2 21 184 28 22 . 54 166 49 41 2 27 7 17 10 . 205 79 AOE 1355 | . . . . . . . 42 . . . 59 . . . . . 430 . . . . 791 . . . . . . . . . 33 Terrain Rammed 1 | . . . . . . . . . . . . . . . . . . . . . . . . . . . . 1 . . . . Walls Destroyed 1 | . . . . . . . . . . . . . . . . . . . . . . . . . . . . 1 . . . . Machines Disabled . | . . . . . . . . . . . . . . . . . . . . . . . . . . . . . . . . . Actions | -11 -10 -10 -9 -9 -9 -8 -8 -8 -7 -7 -6 -6 -6 -6 -6 -5 -5 -5 -5 -5 -4 -4 -4 -4 -4 -3 -3 -3 -2 -2 -2 -1 --------- Run | Yrd Mat Min Mat Min Exi Min Mat Gar Fac Gar Fac Low Low Zio Dee Pro Fac Upp Upp Zhi Pro Fac Upp Upp War Pro Res Tes Res Qua Frg Acc Total 56699 | 50 979 635 1981 608 1318 661 1389 1008 2192 1192 2213 1574 1266 912 1945 1336 4690 1158 1343 209 1217 5673 1254 1572 869 1181 1266 1375 2077 840 9941 775 Wait 3997 | . 58 . 56 54 66 . 25 4 178 294 259 9 174 80 374 121 192 16 27 2 122 540 80 70 . 147 24 17 7 4 995 2 Move 47674 | 44 816 611 1653 540 1133 594 1241 886 1848 829 1831 1553 1051 795 1526 1118 4107 1112 1296 193 1039 4577 1103 1445 842 980 1141 1249 1910 789 7122 700 Hop 315 | . . . 35 1 . 7 10 . 31 11 32 1 1 . . 3 51 2 6 . . 36 2 . 3 1 1 8 5 14 42 12 Pick Up 71 | . 4 . 8 . 12 . 1 1 1 . 1 . . 1 1 . 2 1 . . . 2 . . . 1 . 2 2 . 31 . Fast Attach 122 | 6 10 . 7 . 6 1 2 . 1 . . . . 3 2 . 9 . . 5 . 10 . 2 . . 3 14 1 3 37 . Attach 20 | . 1 . 1 . 1 . . . . . . . . . . . 2 . . 1 . . . . 1 . . 1 . . 12 . Detach 16 | . . . . . 1 1 . . . . . . . . . . . . . 1 . . . . . . 1 1 . . 11 . Swap 227 | . 8 1 11 1 11 5 9 4 7 1 6 . 6 2 6 3 15 1 1 3 7 20 2 5 9 . 11 12 9 2 49 . Drop 162 | . 1 1 16 . 18 . 7 2 2 1 2 . 2 4 4 1 7 . . 3 1 8 . 2 2 1 4 13 2 3 55 . Fire 2462 | . 56 11 137 9 58 36 76 65 87 4 54 9 20 . 23 44 227 22 11 . 28 321 37 46 3 42 7 32 6 . 948 43 Melee 215 | . . . . . . . . . . . . . . . . 10 . . . 1 1 1 1 . . . 27 18 82 21 53 . Ram 1 | . . . . . . . . . . . . . . . . . . . . . . . . . . . . 1 . . . . Kick . | . . . . . . . . . . . . . . . . . . . . . . . . . . . . . . . . . Crush 7 | . 1 6 . . . . . . . . . . . . . . . . . . . . . . . . . . . . . . Escape Stasis 393 | . . . . . . . . 18 6 . . . . . . . . . . . . 70 . . . . 36 . 27 . 236 . Rewire 111 | . . . . . . . . 6 . 52 4 . 3 . . 13 4 . . . 8 . 17 . 1 3 . . . . . . Trap . | . . . . . . . . . . . . . . . . . . . . . . . . . . . . . . . . . Miscellaneous 906 | . 24 5 57 3 12 17 18 22 31 . 24 2 9 27 9 23 74 4 2 . 11 88 12 2 8 6 11 7 26 4 350 18 Route ------- -11/Scrapyard -10/Materials (discovered 4 exits: *Mat x3 / [*Min]) -10/Mines (discovered 2 exits: *Mat x2) -9/Materials (discovered 5 exits: *Mat x3 / *Min x2) -9/Mines (discovered 3 exits: *Mat x2 / *Exi) -9/Exiles -8/Mines (discovered 2 exits: *Mat x2) -8/Materials (discovered 4 exits: *Fac x3 / Gar) -8/Garrison (discovered 3 exits: *Fac x3) -7/Factory (discovered 6 exits: *Fac x4 / [*Sto] / Gar) -7/Garrison (discovered 3 exits: *Fac x3) -6/Factory (discovered 6 exits: *Fac x2 / *Low x2 / Ext x2) -6/Lower Caves -6/Lower Caves (discovered 2 exits: *Fac / *Zio) -6/Zion (discovered 2 exits: *Dee / [*Pro]) -6/Deep Caves -5/Proximity Caves -5/Factory (discovered 4 exits: *Fac x2 / *Upp x2) -5/Upper Caves -5/Upper Caves (discovered 2 exits: *Fac / *Zhi) -5/Zhirov -4/Proximity Caves -4/Factory (discovered 6 exits: *Res x3 / *Upp x2 / *Arm) -4/Upper Caves -4/Upper Caves (discovered 2 exits: *Res / *War) -4/Warlord -3/Proximity Caves -3/Research (discovered 4 exits: Res x2 / *Tes x2) -3/Testing -2/Research (discovered 2 exits: *Acc / *Qua) -2/Quarantine (discovered 3 exits: *Acc / [*Sec] / *Frg) -2/Protoforge -1/Access To Epsilon Eridani History --------- Turn | Location | Event 1 | -11/Scrapyard | Upgraded with Power slot (x1) 1 | -11/Scrapyard | Upgraded with Propulsion slot (x1) 1 | -11/Scrapyard | Upgraded with Utility slot (x1) 1 | -11/Scrapyard | Upgraded with Weapon slot (x1) 6 | -11/Scrapyard | Discovered new exit (range 15) 47 | -11/Scrapyard | Entered Materials 296 | -10/Materials | Reached level 2 305 | -10/Materials | Build established: Mutant 425 | -10/Materials | Discovered new exit (range 10) 497 | -10/Materials | Upgraded with Propulsion slot (x1) 497 | -10/Materials | Upgraded with Utility slot (x1) 619 | -10/Materials | Discovered new exit (range 8) 642 | -10/Materials | Discovered new exit (range 11) 765 | -10/Materials | Reached level 3 907 | -10/Materials | Discovered new exit (range 4) 920 | -10/Materials | Upgraded with Weapon slot (x1) 1222 | -10/Materials | Build established: Tank 1431 | -10/Materials | Entered Mines 1433 | -10/Mines | Reached level 4 1459 | -10/Mines | Discovered new exit (range 3) 1873 | -10/Mines | Learned 2 Materials zone layouts 2195 | -10/Mines | Learned location of Storage (-7) 2195 | -10/Mines | Discovered new exit (range 5) 2461 | -10/Mines | Entered Materials 2462 | -9/Materials | Identified exit to Mines 2463 | -9/Materials | Reached level 5 2614 | -9/Materials | Discovered exit to Mines (range 13) 2676 | -9/Materials | Reached level 6 2901 | -9/Materials | Destroyed 8 combat bots 2906 | -9/Materials | Upgraded with Propulsion slot (x1) 2974 | -9/Materials | Reached level 7 3034 | -9/Materials | Discovered new exit (range 9) 3159 | -9/Materials | Discovered new exit (range 14) 3160 | -9/Materials | Reached level 8 3202 | -9/Materials | Build established: Sprinter 3251 | -9/Materials | Destroyed 10 combat bots 3261 | -9/Materials | First assault squad dispatched 3472 | -9/Materials | Reached level 9 3476 | -9/Materials | Discovered new exit (range 16) 3507 | -9/Materials | Upgraded with Propulsion slot (x1) 3564 | -9/Materials | Upgraded with Utility slot (x1) 3655 | -9/Materials | Sterilization system engaged 3655 | -9/Materials | Non-combat units ordered to evacuate 3755 | -9/Materials | Combat units ordered to evacuate 3775 | -9/Materials | Entered Mines 3793 | -9/Mines | Learned Materials emergency access door positions 3804 | -9/Mines | Received a Rocket Launcher from a helpful Derelict 3838 | -9/Mines | Learned location of Zion (-6) 3852 | -9/Mines | Deemed a non-threat by the Exiles lab entrance 3852 | -9/Mines | Discovered new exit (range 5) 3871 | -9/Mines | A weapon hastily lodged in a ceiling crevice suddenly fell to the ground 3888 | -9/Mines | Discovered new exit (range 3) 3898 | -9/Mines | Received a Mining Laser from a helpful Derelict 3903 | -9/Mines | Discovered new exit (range 8) 3993 | -9/Mines | Entered Exiles 3993 | -9/Exiles | Accompanied by 1 ally 3995 | -9/Exiles | Reached level 10 4000 | -9/Exiles | Met 8R-AWN 4004 | -9/Exiles | Met EX-HEX 4011 | -9/Exiles | Met EX-BIN 4025 | -9/Exiles | Aligned with FarCom system 4025 | -9/Exiles | Given EX-Vault access code 4031 | -9/Exiles | Opened EX-Vault 4039 | -9/Exiles | Warned to stay clear of 0b10 Research branches 4047 | -9/Exiles | Met EX-DEC 4127 | -9/Exiles | Attacked by the Exiles 4265 | -9/Exiles | Core integrity fell below 50% 4272 | -9/Exiles | Destroyed 8R-AWN 4297 | -9/Exiles | Upgraded with Utility slot (x1) 4298 | -9/Exiles | Found Prototype Ballistic Gun 4298 | -9/Exiles | Identified 8R-AWN's Boregun 4299 | -9/Exiles | Found Prototype Device 4299 | -9/Exiles | Identified AS-neutralizer No. 17b 4412 | -9/Exiles | Destroyed EX-DEC 4431 | -9/Exiles | Destroyed EX-HEX 4443 | -9/Exiles | Destroyed EX-BIN 4461 | -9/Exiles | Found Prototype Processor 4461 | -9/Exiles | Identified Exp. Core Analyzer 4466 | -9/Exiles | Upgraded with Utility slot (x1) 4472 | -9/Exiles | DAS Turret deployed 4501 | -9/Exiles | Found Chronowheel 4553 | -9/Exiles | Discovered new exit (range 10) 4555 | -9/Exiles | Left Exiles lab with Chronowheel 4555 | -9/Exiles | Entered Mines 4556 | -8/Mines | NK-0LA came to Exiles' defense 4576 | -8/Mines | Discovered new exit (range 16) 4595 | -8/Mines | Build established: Scavenger-Sprinter 4619 | -8/Mines | Destroyed NK-0LA 4622 | -8/Mines | Found Prototype Device 4622 | -8/Mines | Identified Thermal Barrier 4641 | -8/Mines | Discovered new exit (range 6) 4756 | -8/Mines | Found a Scrap Suit stashed away for nefarious purposes 4801 | -8/Mines | Entered Materials 4803 | -8/Materials | Reached level 11 4842 | -8/Materials | Discovered new exit (range 16) 4872 | -8/Materials | Reached level 12 5087 | -8/Materials | Reached level 13 5148 | -8/Materials | Destroyed 20 combat bots 5162 | -8/Materials | Discovered new exit (range 5) 5210 | -8/Materials | Discovered new exit (range 13) 5242 | -8/Materials | Upgraded with Utility slot (x1) 5269 | -8/Materials | Destroyed 10 combat bots 5321 | -8/Materials | Sterilization system engaged 5321 | -8/Materials | Non-combat units ordered to evacuate 5334 | -8/Materials | Identified exit to Garrison 5334 | -8/Materials | Entered Garrison 5336 | -8/Garrison | Reached level 14 5386 | -8/Garrison | Destroyed 19 combat bots 5460 | -8/Garrison | Triggered checkpoint 5461 | -8/Garrison | Triggered checkpoint 5508 | -8/Garrison | Triggered checkpoint 5520 | -8/Garrison | Triggered checkpoint 5548 | -8/Garrison | Triggered checkpoint 5549 | -8/Garrison | Destroyed 10 combat bots 5564 | -8/Garrison | Triggered checkpoint 5581 | -8/Garrison | Garrison Relay disabled 5581 | -8/Garrison | Garrison Relay disabled 5593 | -8/Garrison | Garrison Relay disabled 5614 | -8/Garrison | Discovered new exit (range 11) 5619 | -8/Garrison | Destroyed 8 combat bots 5653 | -8/Garrison | Discovered new exit (range 12) 5678 | -8/Garrison | Learned Factory security intel 5722 | -8/Garrison | Discovered new exit (range 5) 5733 | -8/Garrison | Triggered checkpoint 5745 | -8/Garrison | Entered Factory 5747 | -7/Factory | Reached level 15 5811 | -7/Factory | Upgraded with Utility slot (x1) 5981 | -7/Factory | Discovered new exit (range 5) 5992 | -7/Factory | Reached level 16 6111 | -7/Factory | Discovered new exit (range 6) 6140 | -7/Factory | Destroyed 23 combat bots 6140 | -7/Factory | Discovered new exit (range 14) 6145 | -7/Factory | First assault squad dispatched 6196 | -7/Factory | Discovered new exit (range 12) 6464 | -7/Factory | Cargo convoy interrupted 6528 | -7/Factory | Discovered new exit (range 6) 6559 | -7/Factory | Identified exit to Garrison 6571 | -7/Factory | Reached level 17 6581 | -7/Factory | Garrison activated, responded to threat 6587 | -7/Factory | Core integrity fell below 50% 6611 | -7/Factory | Destroyed 8 combat bots 6634 | -7/Factory | Entered Garrison 6634 | -7/Garrison | Discovered recently destroyed garrison 6710 | -7/Garrison | Learned Factory security intel 6718 | -7/Garrison | Discovered new exit (range 12) 6743 | -7/Garrison | Discovered new exit (range 5) 6792 | -7/Garrison | Discovered new exit (range 16) 6796 | -7/Garrison | Found embedded Infiltrators 6916 | -7/Garrison | Attempted to access garrison exit controls, blocked by remote lockdown 7043 | -7/Garrison | Attempted to access garrison exit controls, blocked by remote lockdown 7186 | -7/Garrison | Entered Factory 7186 | -6/Factory | Accompanied by 9 allies 7188 | -6/Factory | Reached level 18 7228 | -6/Factory | Discovered new exit (range 17) 7382 | -6/Factory | Garrison activated, responded to threat 7426 | -6/Factory | Discovered new exit (range 4) 7705 | -6/Factory | Build established: Hacker-Sprinter 7750 | -6/Factory | Discovered new exit (range 17) 7842 | -6/Factory | Identified exit to Lower Caves 7842 | -6/Factory | Identified exit to Extension 7907 | -6/Factory | Cargo convoy interrupted 7943 | -6/Factory | Found Prototype Hackware 8017 | -6/Factory | Garrison activated, responded to threat 8028 | -6/Factory | Reached level 19 8047 | -6/Factory | Entered Lower Caves 8047 | -6/Lower Caves | Accompanied by 2 allies 8053 | -6/Lower Caves | Met a Warlord Commander 8054 | -6/Lower Caves | Learned location of Warlord (-4) 8055 | -6/Lower Caves | Warlord Commander delivered Encrypted Comm Array 8066 | -6/Lower Caves | Attracted the attention of an 0b10 checkpoint 8101 | -6/Lower Caves | Learned Factory stockpile data 8114 | -6/Lower Caves | Learned Factory garrison access intel 8129 | -6/Lower Caves | Entered an active Warlord outpost 8133 | -6/Lower Caves | Learned 8 Factory zone layouts 8133 | -6/Lower Caves | Learned Research security intel 8133 | -6/Lower Caves | Learned Factory garrison access intel 8139 | -6/Lower Caves | Discovered new exit (range 7) 8144 | -6/Lower Caves | Encountered a Warlord checkpoint 8432 | -6/Lower Caves | Entered another Lower Caves area 8432 | -6/Lower Caves | Accompanied by 2 allies 8436 | -6/Lower Caves | Ambushed by research squad 8466 | -6/Lower Caves | Discovered new exit (range 3) 8478 | -6/Lower Caves | Found DCF Scrap (12 items) 8524 | -6/Lower Caves | Destroyed 9 combat bots 8597 | -6/Lower Caves | Discovered new exit (range 5) 8635 | -6/Lower Caves | Learned Factory stockpile data 8700 | -6/Lower Caves | Identified exit to Factory 8742 | -6/Lower Caves | Identified exit to Zion 8915 | -6/Lower Caves | Entered Zion 8915 | -6/Zion | Accompanied by 2 allies 8926 | -6/Zion | System corruption cleaned by Quarantine Array 8944 | -6/Zion | Discovered new exit (range 12) 9004 | -6/Zion | Gained Derelict followers 9044 | -6/Zion | Learned Factory terminal intel 9051 | -6/Zion | Given the Hacking Drone Bay 9060 | -6/Zion | Given A8's code to call for help 9085 | -6/Zion | Enhanced Grunt warped into view, answering call for help 9090 | -6/Zion | Enhanced Grunt warped into view, answering call for help 9191 | -6/Zion | Discovered new exit (range 3) 9191 | -6/Zion | Saw the warning signs outside the Deep Caves entrance 9199 | -6/Zion | Found CR-A16's Pointy Stick 9219 | -6/Zion | Identified exit to Deep Caves 9270 | -6/Zion | Entered Deep Caves 9270 | -6/Deep Caves | Accompanied by 9 allies 9272 | -6/Deep Caves | Reached level 20 9404 | -6/Deep Caves | Attacked by Z-Imprinter 9413 | -6/Deep Caves | Destroyed Z-Imprinter 9424 | -6/Deep Caves | Found Prototype Device 9424 | -6/Deep Caves | Identified Zio. Metafield Generator 9445 | -6/Deep Caves | Z-Facility disabled 9601 | -6/Deep Caves | Spotted AG-10007 9601 | -6/Deep Caves | Upgraded with Power slot (x1) 9668 | -6/Deep Caves | Found Trap Reconfigurator 9702 | -6/Deep Caves | Discovered new exit (range 7) 9970 | -6/Deep Caves | Entered Proximity Caves 9970 | -5/Proximity Caves | Accompanied by 7 allies 9986 | -5/Proximity Caves | Reached level 21 10020 | -5/Proximity Caves | Attracted the attention of an 0b10 checkpoint 10041 | -5/Proximity Caves | Destroyed 9 combat bots 10065 | -5/Proximity Caves | Attracted the attention of an 0b10 outpost 10075 | -5/Proximity Caves | Spotter reported a threat 10107 | -5/Proximity Caves | Spotter reported a threat 10153 | -5/Proximity Caves | Destroyed 11 combat bots 10157 | -5/Proximity Caves | Spotter reported a threat 10158 | -5/Proximity Caves | Spotted B-75 Beast 10184 | -5/Proximity Caves | Revealed the true nature of CR-A16's Pointy Stick 10187 | -5/Proximity Caves | Destroyed B-75 Beast 10211 | -5/Proximity Caves | Discovered exit to Factory (range 17) 10386 | -5/Proximity Caves | Entered Factory 10386 | -5/Factory | Accompanied by 8 allies 10387 | -5/Factory | Identified exit to Upper Caves 10388 | -5/Factory | Identified exit to Factory 10388 | -5/Factory | Reached level 22 10390 | -5/Factory | Loaded intel: 25 terminal locations 10391 | -5/Factory | Loaded intel: 4 garrison access locations 10398 | -5/Factory | Upgraded with Utility slot (x1) 10399 | -5/Factory | Identified Exp. System Shield 10473 | -5/Factory | Discovered exit to Upper Caves (range 4) 10511 | -5/Factory | Garrison activated, responded to threat 10549 | -5/Factory | Reached level 23 10671 | -5/Factory | Destroyed 14 combat bots 10688 | -5/Factory | Upgraded with Propulsion slot (x1) 10890 | -5/Factory | Cargo convoy interrupted 10986 | -5/Factory | First assault squad dispatched 11045 | -5/Factory | Reached level 24 11064 | -5/Factory | High security lockdown imminent 11144 | -5/Factory | High security lockdown engaged 11145 | -5/Factory | Destroyed 17 combat bots 11291 | -5/Factory | Destroyed 10 combat bots 11406 | -5/Factory | Destroyed 10 combat bots 11520 | -5/Factory | Reached level 25 11543 | -5/Factory | Destroyed 15 combat bots 11561 | -5/Factory | Discovered exit to Factory (range 16) 11569 | -5/Factory | Sterilization system engaged 11569 | -5/Factory | Non-combat units ordered to evacuate 11669 | -5/Factory | Combat units ordered to evacuate 11712 | -5/Factory | Entered Upper Caves 11713 | -5/Upper Caves | Encountered a Warlord checkpoint 11738 | -5/Upper Caves | Attracted the attention of an 0b10 checkpoint 11769 | -5/Upper Caves | Found Alien Artifact 11788 | -5/Upper Caves | Discovered new exit (range 6) 11788 | -5/Upper Caves | Identified exit to Upper Caves 11791 | -5/Upper Caves | Attracted the attention of an 0b10 base 11791 | -5/Upper Caves | Learned Research terminal intel 11791 | -5/Upper Caves | Learned Extension emergency access door positions 11791 | -5/Upper Caves | Learned Armory terminal intel 11791 | -5/Upper Caves | Learned Research garrison access intel 11845 | -5/Upper Caves | Destroyed 13 combat bots 11895 | -5/Upper Caves | Learned Factory emergency access door positions 11910 | -5/Upper Caves | Entered another Upper Caves area 11910 | -5/Upper Caves | Spotted OR-DIH(f) 11912 | -5/Upper Caves | Encountered a Master Thief 11960 | -5/Upper Caves | Destroyed OR-DIH(f) 11974 | -5/Upper Caves | Learned location of 1 exit from Proximity Caves 11992 | -5/Upper Caves | Attacked by a faux Warlord 12039 | -5/Upper Caves | Learned Factory emergency access door positions 12040 | -5/Upper Caves | Discovered new exit (range 10) 12041 | -5/Upper Caves | Encountered a Warlord checkpoint 12041 | -5/Upper Caves | Found DCF Scrap (12 items) 12112 | -5/Upper Caves | Identified exit to Zhirov 12112 | -5/Upper Caves | Entered Zhirov 12114 | -5/Zhirov | Discovered new exit (range 3) 12116 | -5/Zhirov | Met Zhirov 12120 | -5/Zhirov | Zhirov requested help retrieving the SGEMP Prototype 12122 | -5/Zhirov | Found Alien Artifact 12122 | -5/Zhirov | Identified Integrated Reactor 12122 | -5/Zhirov | Installed Integrated Reactor, increased core energy generation (+10) 12137 | -5/Zhirov | Found Alien Artifact 12137 | -5/Zhirov | Identified Transdimensional Reconstructor 12137 | -5/Zhirov | Warped through subspace 12153 | -5/Zhirov | Identified exit to Proximity Caves 12153 | -5/Zhirov | Entered Proximity Caves 12158 | -4/Proximity Caves | Attracted the attention of an 0b10 outpost 12231 | -4/Proximity Caves | Spotted B-86 Titan 12237 | -4/Proximity Caves | Destroyed B-86 Titan 12252 | -4/Proximity Caves | Attracted the attention of an 0b10 checkpoint 12256 | -4/Proximity Caves | Reached level 26 12277 | -4/Proximity Caves | Destroyed 16 combat bots 12277 | -4/Proximity Caves | Learned location of 2 exits from Research 12488 | -4/Proximity Caves | Entered Factory 12488 | -4/Factory | Accompanied by 2 allies 12489 | -4/Factory | Identified exit to Upper Caves 12492 | -4/Factory | Loaded intel: 4 garrison access locations 12565 | -4/Factory | Discovered new exit (range 15) 12566 | -4/Factory | Identified exit to Research 12593 | -4/Factory | Spotted B-86 Titan 12599 | -4/Factory | Destroyed B-86 Titan 12631 | -4/Factory | Garrison activated, responded to threat 12674 | -4/Factory | Identified exit to Armory 12786 | -4/Factory | Reached level 27 12805 | -4/Factory | Lost 3 allies 12807 | -4/Factory | Destroyed 23 combat bots 12827 | -4/Factory | Garrison activated, responded to threat 12907 | -4/Factory | Upgraded with Utility slot (x1) 12934 | -4/Factory | Discovered exit to Research (range 12) 12936 | -4/Factory | Destroyed 8 combat bots 12988 | -4/Factory | First assault squad dispatched 13525 | -4/Factory | Destroyed 9 combat bots 13606 | -4/Factory | Cargo convoy interrupted 13709 | -4/Factory | High security lockdown imminent 13789 | -4/Factory | High security lockdown engaged 13900 | -4/Factory | Reached level 28 13941 | -4/Factory | Discovered exit to Research (range 6) 13956 | -4/Factory | Destroyed 7 combat bots 14121 | -4/Factory | Destroyed 22 combat bots 14282 | -4/Factory | Destroyed 17 combat bots 14315 | -4/Factory | Sterilization system engaged 14315 | -4/Factory | Non-combat units ordered to evacuate 14415 | -4/Factory | Combat units ordered to evacuate 14433 | -4/Factory | Destroyed 28 combat bots 14469 | -4/Factory | Entered Upper Caves 14469 | -4/Upper Caves | Accompanied by 2 allies 14540 | -4/Upper Caves | Spotted B-86 Titan 14543 | -4/Upper Caves | Destroyed B-86 Titan 14551 | -4/Upper Caves | Discovered new exit (range 15) 14552 | -4/Upper Caves | Identified exit to Upper Caves 14596 | -4/Upper Caves | Learned 4 Research zone layouts 14612 | -4/Upper Caves | Attracted the attention of an 0b10 outpost 14641 | -4/Upper Caves | Destroyed 23 combat bots 14794 | -4/Upper Caves | Entered another Upper Caves area 14794 | -4/Upper Caves | Accompanied by 3 allies 14795 | -4/Upper Caves | Identified exit to Warlord 14796 | -4/Upper Caves | Reached level 29 14801 | -4/Upper Caves | Discovered exit to Research (range 14) 14813 | -4/Upper Caves | Attracted the attention of an 0b10 checkpoint 14856 | -4/Upper Caves | Learned Research emergency access door positions 14871 | -4/Upper Caves | Destroyed 8 combat bots 14936 | -4/Upper Caves | Entered a destroyed Warlord outpost 14958 | -4/Upper Caves | Spotted SD-UPF(f) 14958 | -4/Upper Caves | Spotted JT-5UD(f) 14958 | -4/Upper Caves | Spotted VQ-S30(f) 14963 | -4/Upper Caves | Encountered a Master Thief 14982 | -4/Upper Caves | Encountered a Master Thief 15002 | -4/Upper Caves | Encountered a Master Thief 15005 | -4/Upper Caves | Destroyed SD-UPF(f) 15015 | -4/Upper Caves | Destroyed VQ-S30(f) 15052 | -4/Upper Caves | Destroyed JT-5UD(f) 15121 | -4/Upper Caves | Entered Warlord 15121 | -4/Warlord | Accompanied by 3 allies 15125 | -4/Warlord | System corruption cleaned by Quarantine Array 15198 | -4/Warlord | Warlord's base attacked by MAIN.C 15198 | -4/Warlord | Found Prototype Processor 15198 | -4/Warlord | Identified Spectral Analyzer 15223 | -4/Warlord | Met Warlord 15245 | -4/Warlord | Discovered new exit (range 8) 15253 | -4/Warlord | Entered Proximity Caves 15326 | -3/Proximity Caves | Attracted the attention of an 0b10 outpost 15384 | -3/Proximity Caves | Attracted the attention of an 0b10 checkpoint 15609 | -3/Proximity Caves | Entered Research 15609 | -3/Research | Accompanied by 1 ally 15610 | -3/Research | Identified exit to Testing 15611 | -3/Research | Identified exit to Research 15615 | -3/Research | Loaded intel: 21 terminal locations 15616 | -3/Research | Loaded intel: 4 garrison access locations 15645 | -3/Research | Discovered exit to Testing (range 8) 15687 | -3/Research | Spotted B-86 Titan 15692 | -3/Research | Destroyed B-86 Titan 15848 | -3/Research | Reached level 30 15865 | -3/Research | Spotted B-86 Titan 15867 | -3/Research | Destroyed B-86 Titan 15906 | -3/Research | Entered Testing 15916 | -3/Testing | Found Prototype Energy Cannon 15916 | -3/Testing | Identified Hpw. Disruptor Cannon 15972 | -3/Testing | Spotted Striker 15972 | -3/Testing | Spotted Striker 15979 | -3/Testing | Found Prototype Energy Cannon 15979 | -3/Testing | Identified Null Cannon 16065 | -3/Testing | Found Prototype Device 16065 | -3/Testing | Identified AEGIS Remote Shield 16079 | -3/Testing | Discovered exit to Research (range 14) 16174 | -3/Testing | Found Prototype Processor 16174 | -3/Testing | Identified Exp. Target Analyzer 16204 | -3/Testing | Entered Research 16204 | -2/Research | Warlord forces began assault on 0b10 16206 | -2/Research | Reached level 31 16220 | -2/Research | Spotted B-90 Cyclops 16234 | -2/Research | Spotted B-90 Cyclops 16248 | -2/Research | Destroyed B-90 Cyclops 16277 | -2/Research | Destroyed B-90 Cyclops 16291 | -2/Research | Spotted B-90 Cyclops 16295 | -2/Research | Destroyed B-90 Cyclops 16312 | -2/Research | Lost 3 allies 16314 | -2/Research | Research machine network offline 16406 | -2/Research | Destroyed 12 combat bots 16406 | -2/Research | Discovered new exit (range 8) 16469 | -2/Research | Upgraded with Utility slot (x1) 16473 | -2/Research | Identified exit to Access 16485 | -2/Research | Spotted Striker 16489 | -2/Research | Spotted Striker 16532 | -2/Research | Borebot progress halted 16552 | -2/Research | Met up with Warlord 16553 | -2/Research | Met DD-05H 16570 | -2/Research | Discovered new exit (range 12) 16571 | -2/Research | Identified exit to Quarantine 16605 | -2/Research | Spotted B-90 Cyclops 16606 | -2/Research | Destroyed B-90 Cyclops 16654 | -2/Research | Reached level 32 16667 | -2/Research | Found Adv. Force Booster 16696 | -2/Research | Entered Quarantine 16761 | -2/Quarantine | Found Alien Slashing Weapon 16761 | -2/Quarantine | Identified Sigix Broadsword 16776 | -2/Quarantine | Found Prototype Processor 16776 | -2/Quarantine | Identified Exp. Melee Analysis Suite 16785 | -2/Quarantine | Discovered exit to Access (range 18) 16801 | -2/Quarantine | Scanned by Researcher 16805 | -2/Quarantine | Core integrity fell below 50% 16844 | -2/Quarantine | Spotted Fortress 16851 | -2/Quarantine | Discovered new exit (range 5) 16851 | -2/Quarantine | Discovered new exit (range 6) 16852 | -2/Quarantine | Identified exit to Protoforge 16852 | -2/Quarantine | Entered Protoforge 16859 | -2/Protoforge | Superfortress began startup sequence 16866 | -2/Protoforge | Spotted Hotshot 16867 | -2/Protoforge | Spotted B-90 Cyclops 16868 | -2/Protoforge | Spotted Hotshot 16868 | -2/Protoforge | Spotted Hotshot 16868 | -2/Protoforge | Spotted Hotshot 16876 | -2/Protoforge | Destroyed Hotshot 16882 | -2/Protoforge | Destroyed B-90 Cyclops 16917 | -2/Protoforge | Destroyed Hotshot 16923 | -2/Protoforge | Destroyed Hotshot 16945 | -2/Protoforge | Destroyed Hotshot 17012 | -2/Protoforge | Forge Plexus network access discovered 17022 | -2/Protoforge | Reached level 33 17058 | -2/Protoforge | Spotted Hotshot 17058 | -2/Protoforge | Spotted Hotshot 17058 | -2/Protoforge | Spotted Hotshot 17058 | -2/Protoforge | Spotted Hotshot 17103 | -2/Protoforge | Spotted V485-w 17103 | -2/Protoforge | Spotted V129-v 17103 | -2/Protoforge | Spotted V911-s 17103 | -2/Protoforge | Spotted V895-x 17111 | -2/Protoforge | Found Cep. XC Strikerail 17115 | -2/Protoforge | Found Cep. XC Strikerail 17189 | -2/Protoforge | Destroyed Hotshot 17202 | -2/Protoforge | Spotted Immortal 17202 | -2/Protoforge | Spotted Immortal 17202 | -2/Protoforge | Spotted Decapitator 17202 | -2/Protoforge | Spotted Decapitator 17202 | -2/Protoforge | Spotted Decapitator 17202 | -2/Protoforge | Spotted Decapitator 17217 | -2/Protoforge | Destroyed Hotshot 17225 | -2/Protoforge | Destroyed Hotshot 17227 | -2/Protoforge | Destroyed Hotshot 17302 | -2/Protoforge | Destroyed 12 combat bots 17337 | -2/Protoforge | Destroyed Immortal 17337 | -2/Protoforge | Destroyed Immortal 17352 | -2/Protoforge | First assault squad dispatched 17357 | -2/Protoforge | Found Crosscalibrator 17376 | -2/Protoforge | Spotted Decapitator 17376 | -2/Protoforge | Spotted Decapitator 17376 | -2/Protoforge | Spotted V584-u 17376 | -2/Protoforge | Spotted V077-v 17377 | -2/Protoforge | Destroyed Decapitator 17380 | -2/Protoforge | Destroyed Decapitator 17415 | -2/Protoforge | Spotted V265-s 17415 | -2/Protoforge | Spotted V506-b 17415 | -2/Protoforge | Spotted V908-s 17427 | -2/Protoforge | Found Faulty Cep. Fieldthrust Drive 17428 | -2/Protoforge | Found Faulty Cep. Fieldthrust Drive 17466 | -2/Protoforge | Destroyed V265-s 17468 | -2/Protoforge | Destroyed V908-s 17565 | -2/Protoforge | Spotted Decapitator 17565 | -2/Protoforge | Spotted Decapitator 17565 | -2/Protoforge | Spotted Decapitator 17565 | -2/Protoforge | Spotted Decapitator 17589 | -2/Protoforge | Found Cep. Hardlight Director 17659 | -2/Protoforge | Found Faulty Cep. Zero-point Core 17662 | -2/Protoforge | Found Faulty Cep. Zero-point Core 17837 | -2/Protoforge | Destroyed V584-u 17843 | -2/Protoforge | Found Exp. Kinecellerator 17846 | -2/Protoforge | Upgraded with Propulsion slot (x1) 17904 | -2/Protoforge | Spotted AP7-3 17904 | -2/Protoforge | Spotted AP7-3 17969 | -2/Protoforge | Destroyed AP7-3 17991 | -2/Protoforge | Destroyed AP7-3 17996 | -2/Protoforge | System corruption reached 10% 18054 | -2/Protoforge | Found Cep. Blasthammer 18064 | -2/Protoforge | Found Cep. Core Analysis Suite 18066 | -2/Protoforge | Found Cep. Core Analysis Suite 18089 | -2/Protoforge | Additional patrols dispatched to research labs 18092 | -2/Protoforge | Found Transdimensional Reconstructor 18092 | -2/Protoforge | Warped through subspace 18143 | -2/Protoforge | Spotted Immortal 18146 | -2/Protoforge | Spotted V073-p 18146 | -2/Protoforge | Spotted V313-y 18148 | -2/Protoforge | Found Cep. Matter Streamer 18157 | -2/Protoforge | Destroyed Decapitator 18160 | -2/Protoforge | Destroyed Decapitator 18204 | -2/Protoforge | Reached level 34 18253 | -2/Protoforge | Found Exp. Jetlance 18384 | -2/Protoforge | Found Cep. Heavy Railcannon 18388 | -2/Protoforge | Found Cep. Lightning Penetrator 18418 | -2/Protoforge | Destroyed V485-w 18423 | -2/Protoforge | Destroyed V129-v 18428 | -2/Protoforge | Destroyed V895-x 18433 | -2/Protoforge | Found Cep. XC Strikerail 18465 | -2/Protoforge | Found Cep. RG22 Armor 18467 | -2/Protoforge | Found Exp. EM Disruption Field 18530 | -2/Protoforge | Destroyed 15 combat bots 18538 | -2/Protoforge | Spotted Striker 18547 | -2/Protoforge | Destroyed Striker 18626 | -2/Protoforge | Spotted Overlord 18632 | -2/Protoforge | Destroyed Overlord 18755 | -2/Protoforge | Destroyed 29 combat bots 18759 | -2/Protoforge | Spotted Hotshot 18759 | -2/Protoforge | Spotted Hotshot 18759 | -2/Protoforge | Spotted Hotshot 18760 | -2/Protoforge | Spotted Hotshot 18761 | -2/Protoforge | Spotted Hotshot 18778 | -2/Protoforge | Destroyed Hotshot 18802 | -2/Protoforge | Destroyed Hotshot 18815 | -2/Protoforge | Destroyed Hotshot 18829 | -2/Protoforge | Destroyed Hotshot 18831 | -2/Protoforge | Destroyed Hotshot 18852 | -2/Protoforge | Destroyed 8 combat bots 18926 | -2/Protoforge | Spotted Hotshot 18926 | -2/Protoforge | Spotted Hotshot 18927 | -2/Protoforge | Spotted Hotshot 18927 | -2/Protoforge | Spotted Hotshot 18928 | -2/Protoforge | Discovered exit to Access (range 19) 18930 | -2/Protoforge | Spotted Hotshot 18937 | -2/Protoforge | Destroyed Hotshot 18945 | -2/Protoforge | Destroyed Hotshot 18954 | -2/Protoforge | Destroyed Hotshot 19013 | -2/Protoforge | Destroyed Hotshot 19021 | -2/Protoforge | Destroyed Hotshot 19042 | -2/Protoforge | Destroyed 16 combat bots 19187 | -2/Protoforge | Destroyed 8 combat bots 19331 | -2/Protoforge | Reached level 35 19443 | -2/Protoforge | Destroyed 10 combat bots 19664 | -2/Protoforge | Destroyed 15 combat bots 19694 | -2/Protoforge | Spotted Decapitator 19694 | -2/Protoforge | Spotted Decapitator 19694 | -2/Protoforge | Spotted Decapitator 19696 | -2/Protoforge | Destroyed Decapitator 19698 | -2/Protoforge | Destroyed Decapitator 19699 | -2/Protoforge | Destroyed Decapitator 19709 | -2/Protoforge | Found Prototype Launcher 19709 | -2/Protoforge | Identified Cep. Concussive Dispersal Blaster 19753 | -2/Protoforge | Spotted AP7-3 19754 | -2/Protoforge | Spotted AP7-3 19755 | -2/Protoforge | Destroyed AP7-3 19768 | -2/Protoforge | Destroyed AP7-3 19777 | -2/Protoforge | Spotted EXE-6 19779 | -2/Protoforge | Spotted EXE-6 19784 | -2/Protoforge | Destroyed EXE-6 19793 | -2/Protoforge | Destroyed EXE-6 19806 | -2/Protoforge | Spotted Decapitator 19806 | -2/Protoforge | Spotted Decapitator 19810 | -2/Protoforge | Destroyed Decapitator 19812 | -2/Protoforge | Destroyed Decapitator 19824 | -2/Protoforge | Spotted EXE-6 19824 | -2/Protoforge | Spotted EXE-6 19846 | -2/Protoforge | Destroyed EXE-6 19850 | -2/Protoforge | Destroyed EXE-6 19852 | -2/Protoforge | Found Prototype Processor 19852 | -2/Protoforge | Identified Exp. Armor Integrity Analyzer 19857 | -2/Protoforge | Found Cep. XC Strikerail 19953 | -2/Protoforge | Destroyed 7 combat bots 20144 | -2/Protoforge | Build established: Scavenger-Sprinter 20205 | -2/Protoforge | Destroyed 17 combat bots 20235 | -2/Protoforge | Spotted Executioner 20348 | -2/Protoforge | Destroyed 14 combat bots 20420 | -2/Protoforge | Fabricated Adv. Gravity Neutralizer? 20546 | -2/Protoforge | Destroyed 17 combat bots 20599 | -2/Protoforge | Destroyed 8 combat bots 20784 | -2/Protoforge | Destroyed 17 combat bots 20790 | -2/Protoforge | Spotted Immortal 20805 | -2/Protoforge | Destroyed Immortal 20806 | -2/Protoforge | Spotted Decapitator 20807 | -2/Protoforge | Destroyed Decapitator 20857 | -2/Protoforge | Spotted Immortal 20859 | -2/Protoforge | Spotted Executioner 20887 | -2/Protoforge | Destroyed Immortal 20887 | -2/Protoforge | Destroyed Executioner 20923 | -2/Protoforge | High security lockdown imminent 20938 | -2/Protoforge | Spotted Striker 20941 | -2/Protoforge | Destroyed Striker 20956 | -2/Protoforge | Destroyed Executioner 20967 | -2/Protoforge | Spotted Hotshot 20972 | -2/Protoforge | Spotted Striker 20977 | -2/Protoforge | Destroyed 13 combat bots 21003 | -2/Protoforge | High security lockdown engaged 21003 | -2/Protoforge | Destroyed Striker 21026 | -2/Protoforge | Destroyed Hotshot 21037 | -2/Protoforge | Spotted Hotshot 21040 | -2/Protoforge | Spotted Decapitator 21040 | -2/Protoforge | Destroyed Decapitator 21061 | -2/Protoforge | Destroyed 14 combat bots 21063 | -2/Protoforge | Spotted Striker 21063 | -2/Protoforge | Spotted Immortal 21070 | -2/Protoforge | Destroyed Hotshot 21077 | -2/Protoforge | Spotted Decapitator 21077 | -2/Protoforge | Destroyed Decapitator 21079 | -2/Protoforge | Destroyed Immortal 21100 | -2/Protoforge | Spotted Immortal 21103 | -2/Protoforge | Spotted Decapitator 21107 | -2/Protoforge | Destroyed Decapitator 21137 | -2/Protoforge | Destroyed Striker 21141 | -2/Protoforge | Destroyed Immortal 21145 | -2/Protoforge | Spotted Hotshot 21145 | -2/Protoforge | Spotted Immortal 21196 | -2/Protoforge | Reached level 36 21224 | -2/Protoforge | Spotted Executioner 21226 | -2/Protoforge | Destroyed 7 combat bots 21227 | -2/Protoforge | Spotted Hotshot 21234 | -2/Protoforge | Spotted Striker 21237 | -2/Protoforge | Destroyed Striker 21242 | -2/Protoforge | Destroyed Hotshot 21264 | -2/Protoforge | Destroyed Investigator 21280 | -2/Protoforge | Spotted Striker 21288 | -2/Protoforge | Spotted Immortal 21307 | -2/Protoforge | Destroyed 14 combat bots 21321 | -2/Protoforge | Destroyed Executioner 21324 | -2/Protoforge | Spotted Immortal 21325 | -2/Protoforge | Spotted Decapitator 21326 | -2/Protoforge | Destroyed Decapitator 21328 | -2/Protoforge | Spotted Hotshot 21335 | -2/Protoforge | Destroyed Immortal 21335 | -2/Protoforge | Spotted Executioner 21338 | -2/Protoforge | Destroyed Executioner 21340 | -2/Protoforge | Destroyed Striker 21342 | -2/Protoforge | Destroyed Immortal 21365 | -2/Protoforge | Spotted Striker 21380 | -2/Protoforge | Destroyed 7 combat bots 21394 | -2/Protoforge | Entered Access 21430 | -1/Access | High security lockdown imminent 21450 | -1/Access | Core integrity fell below 50% 21463 | -1/Access | Spotted B-99 Colossus 21478 | -1/Access | Destroyed B-99 Colossus 21510 | -1/Access | High security lockdown engaged 21513 | -1/Access | Spotted Executioner 21513 | -1/Access | Spotted Executioner 21527 | -1/Access | Destroyed 18 combat bots 21568 | -1/Access | Core integrity fell below 20% 21586 | -1/Access | Spotted B-99 Colossus 21586 | -1/Access | Spotted B-99 Colossus 21590 | -1/Access | Discovered new exit (range 5) 21592 | *** | Escaped! Last Messages --------------- 21579_ Acquired 25 matter. 21579_ Acquired 48 matter. 21579_ Acquired 21 matter. 21579_ Used Protomatter to restore core integrity (+21, depleted) 21580_ Acquired 61 matter. 21581_ Acquired 54 matter. 21586_ Wave Collapse Detector explodes. 21586_ Penetrated by Slug. 21586_ Slug penetrates Wall. 21586_ Railslug penetrates Sealed Heavy Doors. 21586_ Sealed Heavy Doors breached. 21586_ Railslug penetrates Sealed Heavy Doors. 21586_ Slug penetrates Wall. 21590_ Railslug penetrates Main Access Shell. 21590_ Main Access Shell breached. 21590_ EXIT=FOUND 21590_ Railslug penetrates Main Access Shell. 21590_ Railslug penetrates Reinforced Barrier. Map ----- +----------------------------------------------------+ | ??????????????? ??# # " #????? | | ????????????????? ?# # *#????? | | ?????????????????? ?# #? #????? | | ??????????????????? # #?#########????? | | ???????????????????? # #??????????????? | | ????????????????????? " *#??????????????? | | ??????????????????????+ ##########?????? | | ??????????????????????# % ######## #?????# | | ??????????????????????# #??????# ####### | | ???????????????????#### ####???# + # | | ???????????????????# #???# " # # | | ???????????????????# #???# """ # # | | ???????????????????# #???# """ + + | | ???????????????????# #???# " ## #### | | ???????????????????# #???# ## #??# | | ???????????????????# #???# ## #??# | | ???????????????????# #???####+###### #??# | | ???????????????????#""""" """"#?????# #????# #??# | | ????????????????????????" "?????????# #????# #??? | | ????????????????????????" "?????????# #????# #??? | | ???????????????????#""""" """"#?????# #????# #### | | ???????????????????# #?????# #????+ # | | ???????????????????# """""" #?????# #????# # | | ???????????????????# " "? #?????# ###### # | | ???????????????????# " "" "??#?????# # | | ???????????????????# " "@ " ###???# + " | | ???????????????????# ; #???# ######## | | ???????????????????# """""" ###???# #??????# | | ???????????????????# ?????? #?????# #??????# | | ???????????????????# ???????#?????# #??????# | | ???????????????????"""""????????????# #??????#### | | ????????????????????????????????????# #?????????? | | ????????????????????????????????????# #?????????? | | ????????????????????????????????????# #?????????? | | ????????????????????????????????????# +?????????? | | ????????????????????????????????????# #?????????? | | ????????????????????????????????????# #?????????? | | ????????????????????????????????????# #?????????? | | ???????????????????????????????????? #?????????? | | ???????????????????????????????????? ??????????? | | ????????????????????????????????????#+#??????????? | | ?????????????????????????????????????????????????? | | ?????????????????????????????????????????????????? | | ?????????????????????????????????????????????????? | | ?????????????????????????????????????????????????? | | ?????????????????????????????????????????????????? | | ?????????????????????????????????????????????????? | | ?????????????????????????????????????????????????? | | ?????????????????????????????????????????????????? | | ?????????????????????????????????????????????????? | +----------------------------------------------------+ Best States ------------- Heat Dissipation 127 Energy Generation 107 Energy Capacity 1170 Matter Stores 550 Matter Capacity 550 Sight Range 19 Terrain Scan Density 10 Jamming Range 16 Additional Mass Support 16 Armor Coverage 450 Resistance: KI 50 Resistance: TH 70 Resistance: EX 20 Resistance: EM 20 Resistance: I 20 Resistance: S 20 Resistance: P 20 Weapon Cycling 25 Phase Shifting 15 Evasion (%) 96 Core Analysis 16 Armor Integrity Analysis 50 Recoil Reduction 3 Matter Filtering 30 Particle Charging 20 Kinecelleration 66 Force Boost 40 Salvage Targeting 2 Offensive Hacking 25 Defensive Hacking 26 Item Schematics ----------------- Heat Sink | -9/Materials | Extracted Lgt. Treads | -9/Materials | Extracted Plasma Cutter | -9/Materials | Extracted VTOL Module | -9/Materials | Extracted Shield Generator | -9/Materials | Extracted Datajack | -9/Materials | Extracted Imp. Heat Sink | -8/Materials | Extracted Enh. Autogun | -8/Materials | Extracted Lgt. Nuclear Core | -8/Materials | Extracted Imp. Hover Unit | -8/Materials | Extracted Hvy. EM Shotgun | -8/Materials | Extracted Salvage Targeting Computer | -8/Materials | Hacked Adv. Transmission Jammer | -7/Factory | Scanalyzed Thermic Laser | -5/Factory | Extracted Recoil Stabilizer | -5/Factory | Extracted Thunder Leg | -5/Factory | Extracted Imp. KE Penetrator | -5/Factory | Extracted Arm. Wheel | -5/Factory | Extracted Hpw. Tractor Beam | -5/Factory | Extracted Linear Gravjet | -5/Factory | Extracted Matter Filter | -5/Factory | Extracted Launcher Loader | -5/Factory | Extracted Assault Drone Bay | -5/Zhirov | Free Exp. Optical Array | -5/Zhirov | Free Exp. Heat Sink | -5/Zhirov | Free Imp. Arc Thrower | -5/Zhirov | Free Exp. Flexi-carbon Leg | -3/Testing | Archive Hvy. Proton Missile Launcher | -3/Testing | Archive Diametric Drive | -3/Testing | Archive Lgt. Antimatter Cannon | -3/Testing | Archive Hvy. Dispersion Rifle | -3/Testing | Archive Enh. Armored Medium Treads | -3/Testing | Archive Hellfire Missile Launcher | -3/Testing | Archive Adv. Dynamic Insulation System | -3/Testing | Archive Adv. KE Penetrator | -2/Quarantine | Archive Com. Particle Reactor | -2/Quarantine | Archive Exp. Coolant Injector | -2/Quarantine | Archive Adv. Energy Well | -2/Protoforge | Archive Coolant Network | -2/Protoforge | Archive Prc. Phase Gun | -2/Protoforge | Archive Exp. Gyrokinetic Inverter | -2/Protoforge | Archive Exp. Targeting Computer | -2/Protoforge | Archive Exp. Energy Well | -2/Protoforge | Archive Cld. Nuclear Pulse Thruster | -2/Protoforge | Archive Exp. System Shield | -2/Protoforge | Archive Cld. Q-thruster | -2/Protoforge | Archive Adv. Gravity Neutralizer | -2/Protoforge | Archive Exp. Q-thruster | -2/Protoforge | Archive Exp. Power Amplifier | -2/Protoforge | Archive Adv. Variable Charge Gun | -2/Protoforge | Archive Imp. Diametric Drive | -2/Protoforge | Archive Centrium Heavy Treads | -2/Protoforge | Archive Exp. ECM Suite | -2/Protoforge | Archive Robot Schematics ------------------ Y-45 Defender | -8/Materials | Hacked A-02 Transporter | -3/Testing | Archive R-10 Processor | -3/Testing | Archive T-07 Excavator | -3/Testing | Archive S-43 Plague | -2/Protoforge | Archive K-01 Serf | -2/Protoforge | Archive A-27 Freighter | -2/Protoforge | Archive Fabricated ------------ Adv. Gravity Neutralizer | x1 | -2/Protoforge Repaired ---------- Nothing Alien Tech Used ----------------- Integrated Reactor Transdimensional Reconstructor Sigix Broadsword Achievements -------------- None Challenges ------------ None RPGLIKE | -11 -10 -10 -9 -9 -9 -8 -8 -8 -7 -7 -6 -6 -6 -6 -6 -5 -5 -5 -5 -5 -4 -4 -4 -4 -4 -3 -3 -3 -2 -2 -2 -1 --------- Run | Yrd Mat Min Mat Min Exi Min Mat Gar Fac Gar Fac Low Low Zio Dee Pro Fac Upp Upp Zhi Pro Fac Upp Upp War Pro Res Tes Res Qua Frg Acc Levels Raised 35 | . 2 1 5 . 1 . 3 1 3 . 2 . . . 1 1 4 . . . 1 2 . 1 . . 1 . 2 . 4 . XP Earned 57883 | 4000 4100 1200 7661 530 147 1300 4362 1425 3489 257 2593 319 796 170 472 2659 4712 255 68 73 1044 3959 356 115 75 606 843 516 2473 647 5415 1246 XP Spent 56350 | 3350 3600 . 6900 . 3600 . 4500 400 3900 . 2550 . . . 3500 . 7500 . . . . 3400 . 1420 . . . . 5350 . 4400 1980 Upgrades 98 | 12 8 . 9 . 3 . 6 2 6 . 3 . . . 8 . 9 . . . . 2 . 2 . . . . 6 . 4 18 Power Slot 2 | 1 . . . . . . . . . . . . . . 1 . . . . . . . . . . . . . . . . . Propulsion Slot 6 | 1 1 . 2 . . . . . . . . . . . . . 1 . . . . . . . . . . . . . 1 . Utility Slot 10 | 1 1 . 1 . 2 . 1 . 1 . . . . . . . 1 . . . . 1 . . . . . . 1 . . . Weapon Slot 2 | 1 1 . . . . . . . . . . . . . . . . . . . . . . . . . . . . . . . Core Integrity 18 | . . . . . . . . . . . . . . . . . . . . . . . . . . . . . . . . 18 Heat Dissipation 17 | 6 4 . . . . . . . . . . . . . 5 . 1 . . . . . . 1 . . . . . . . . Energy Generation 4 | . . . 2 . . . 1 . . . . . . . . . . . . . . . . 1 . . . . . . . . Matter Storage 5 | . . . . . . . . . . . . . . . . . 5 . . . . . . . . . . . . . . . Mass Support 4 | . . . 2 . . . . . . . . . . . 1 . 1 . . . . . . . . . . . . . . . Inventory Capacity 5 | 2 . . 2 . . . . . . . 1 . . . . . . . . . . . . . . . . . . . . . Sight Range 3 | . . . . . . . . 2 . . . . . . . . . . . . . 1 . . . . . . . . . . Ranged Accuracy 4 | . 1 . . . 1 . 2 . . . . . . . . . . . . . . . . . . . . . . . . . Melee Accuracy 2 | . . . . . . . . . . . . . . . . . . . . . . . . . . . . . 2 . . . Hack Attack % 2 | . . . . . . . 1 . 1 . . . . . . . . . . . . . . . . . . . . . . . Hack Defense % 2 | . . . . . . . 1 . 1 . . . . . . . . . . . . . . . . . . . . . . . KI Resistance % 4 | . . . . . . . . . . . . . . . 1 . . . . . . . . . . . . . 3 . . . TH Resistance % 4 | . . . . . . . . . 2 . 2 . . . . . . . . . . . . . . . . . . . . . KI Damage % 4 | . . . . . . . . . 1 . . . . . . . . . . . . . . . . . . . . . 3 . Protomatter Created 22017 | . 318 24 725 17 93 122 841 522 1000 . 301 63 170 . 186 544 2555 259 151 93 438 2927 419 123 . 393 263 377 541 131 7998 423 Integrity Restored 16185 | . 466 62 1059 49 279 351 172 382 529 . 447 11 145 . 82 357 1470 63 22 . 189 1676 124 14 . 74 185 141 400 96 6952 388 Core 11852 | . 392 21 710 21 279 135 123 277 398 . 354 9 101 . 44 264 1074 32 18 . 147 1198 95 14 . 39 156 128 290 96 5049 388 Parts 4333 | . 74 41 349 28 . 216 49 105 131 . 93 2 44 . 38 93 396 31 4 . 42 478 29 . . 35 29 13 110 . 1903 . Protomatter Decayed 14436 | . 158 . 284 . 11 . 428 400 733 . 299 59 54 . 202 357 2206 238 143 . 370 1265 409 118 . 329 266 264 1836 278 3316 413 Game ------ Seed ClaymoresWardroneWeb Manual? 0 Play Time 07:17:49 Cumulative 400.0 hours Start 2025.10.03 @ 19:17:31 End 2025.10.08 @ 17:34:46 Sessions 15 Manual Loads 0 Difficulty Adventurer Special Mode Winter2019/RPGLIKE Game No. 148 Rogue 0 Adventurer 148 Explorer 0 Win Type 0 Total 16 Types 3/3/3/3/1/0/0/1/1/1 Lore% 92 Gallery% 82 Achievement% 82 Wizard Run 0 Options --------- Layout 2 ASCII 0 Keyboard 0 Movement Numpad Keybinds 0 Fullscreen 2 Font 24/Smallcaps Map View 50x44 Zoom Use 0% Tactical HUD 1 Map Filters NONE Filters NONE Steam 1 RUN: 6343df76-3085-4eeb-ae8f-6d9914ff6b1e